{"text_format":"1","workbook":"xlsx","n_sheets":3,"sheets":["Plan1","Plan2","Plan3"],"not_rendered":{"charts":0,"images":0,"macros":0,"external_links":0,"defined_names":0,"comments":0,"pivot_tables":0},"unopened":[],"bounds":{"document_bytes":16777216,"sheet_cells":100000,"rows_first":2000,"rows_last":500,"rows_between":2000,"halvings":0,"cell_chars":16384,"cell_head_chars":4096},"cells_cut":0,"cells_raw":0,"read":"whole","date_system":"1900"}

{"sheet":"Plan1","index":0,"n_rows":675,"n_cols":20,"rows_kept":675,"cut":false,"hidden":false,"merged":[]}
["ITEM","DESCRIÇÃO","UNID.","Aimorés","Baixo Guandu","Gov. Lindenbergue","Guaçuí","Ibiraçu","Iconha","Itaguaçu","Jaguaré","Jer. Monteiro","João Neiva","Marilândia","Mimoso do sul","Rio Bananal","São Domingos","Vargem Alta","Sanear Colatina","TOTAL"]
[null,"LOTE 01: TUBOS EM PVC PBA CASSE 15 JE/JEI/JERI"]
["01.1","TUBO PVC PONTA/BOLSA JEI/JERI CLASSE 15 DN50MM DE60MM X 6 METROS, C/ ANEL DE BORRACHA NORMAS: NBR 5647/1 ","Tubo",450,250,null,150,null,null,null,null,600,null,100,null,50,200,300,1000,{"$f":"SUM(D3:S3)","v":3100}]
["01.2","TUBO PVC/PBA JE/JEI/JERI CLASSE 15 DN75MM DE85MM X 6 METROS C/ ANEL DE BORRACHA,  NORMAS: NBR 5647-1","Tubo",null,null,null,50,null,100,null,null,null,null,null,null,30,null,null,150,{"$f":"SUM(D4:S4)","v":330}]
["01.3","TUBO PVC/PBA JEI/JERI CLASSE 15 DN100MM DE110MM X 6 METROS, C/ ANEL DE BORRACHA,  NORMAS: NBR 5647-1 ","Tubo",150,null,20,200,null,null,null,null,20,10,40,null,null,100,null,500,{"$f":"SUM(D5:S5)","v":1040}]
[]
[]
[null,"LOTE 02: TUBOS EM PVC SOLDÁVEL"]
["02.1","TUBO PVC SOLDÁVEL CLASSE 12 20mm x 6 METROS , NORMAS: NBR 5648","Tubo",800,800,null,200,30,50,200,200,250,null,null,null,200,400,40,800,{"$f":"SUM(D9:S9)","v":3970}]
["02.2","TUBO PVC SOLDÁVEL CLASSE 12 25mm x 6 METROS, NORMAS: NBR 5648","Tubo",300,100,null,50,15,100,100,80,100,null,null,150,null,null,15,600,1610]
["02.3","TUBO PVC SOLDÁVEL CLASSE 15 32mm x 6 METROS, NORMAS: NBR 5648","Tubo",60,100,null,50,15,null,100,50,200,null,null,150,null,null,100,500,1325]
["02.4","TUBO PVC SOLDÁVEL CLASSE 15 40mm x 06 METROS, NORMAS: NBR 5648","Tubo",30,100,null,null,10,null,null,null,50,null,null,null,null,null,null,500,690]
["02.5","TUBO PVC SOLDÁVEL CLASSE 15 50mm X 06 METROS, NORMAS:  NBR 5648","Tubo",60,null,null,20,15,null,50,null,150,null,null,150,null,null,null,500,945]
["02.6","TUBO PVC SOLDÁVEL CLASSE 15 60mm X 06 METROS, NORMAS:  NBR 5648","Tubo",null,null,null,null,null,50,50,null,50,null,null,150,null,200,null,100,600]
[]
[]
[null,"LOTE 03: TUBOS EM PVC ROSCÁVEL"]
["03.1","TUBO PVC BRANCO ROSCAVEL 1/2” X 6 METROS, NORMAS: NBR 5626","Tubo",null,null,null,null,null,null,null,null,null,null,null,150,null,200,null,600,{"$f":"SUM(D18:S18)","v":950}]
["03.2","TUBO PVC BRANCO ROSCAVEL 3/4” X 6 METROS, NORMAS: NBR 5626","Tubo",null,20,null,null,null,null,null,null,null,null,null,150,null,50,null,300,{"$f":"SUM(D19:S19)","v":520}]
["03.3","TUBO PVC BRANCO ROSCAVEL 1” X 6 METROS, NORMAS: NBR 5626","Tubo",null,20,null,null,null,null,null,null,null,null,null,70,null,30,null,100,{"$f":"SUM(D20:S20)","v":220}]
["03.4","TUBO PVC BRANCO ROSCAVEL 1,1/2” X 6 METROS, NORMAS: NBR 5626","Tubo",null,null,null,null,null,null,null,null,null,null,null,null,null,null,null,100,{"$f":"SUM(D21:S21)","v":100}]
["03.5","TUBO PVC BRANCO ROSCAVEL 2” X 6 METROS, NORMAS: NBR 5626","Tubo",null,null,null,null,null,null,null,null,null,null,null,15,null,null,null,100,{"$f":"SUM(D22:S22)","v":115}]
[]
[null,"LOTE 04: TUBOS EM PVC DEFOFO JEI"]
["04.1","TUBO DEFOFO MPVC PONTA/BOLSA JEI/JERI DN 100mm X 6 METROS, NORMAS: NBR 7665/2007","Tubo",null,180,null,null,null,10,null,null,50,null,null,null,null,null,10,1000,{"$f":"SUM(D25:S25)","v":1250}]
["04.2","TUBO PVC DEFOFO PONTA/BOLSA JEI/JERI DN150mm X 6 METROS, NORMAS: NBR 7665/2007","Tubo",120,null,null,15,null,null,null,null,50,null,20,20,10,null,null,500,{"$f":"SUM(D26:S26)","v":735}]
["04.3","TUBO PVC DEFOFO PONTA/BOLSA JEI/JERI DN200mm X 6 METROS, NORMAS: NBR 7665/2007","Tubo",50,null,null,10,null,null,null,860,20,null,10,null,80,null,null,300,{"$f":"SUM(D27:S27)","v":1330}]
["04.4","TUBO PVC DEFOFO PONTA/BOLSA JEI/JERI DN250mm X 6 METROS, NORMAS: NBR 7665/2007","Tubo",null,null,null,10,null,null,null,null,null,null,null,null,null,null,null,50,{"$f":"SUM(D28:S28)","v":60}]
["04.5","TUBO PVC DEFOFO PONTA/BOLSA JEI/JERI DN300mm X 6 METROS, NORMAS: NBR 7665/2007","Tubo",null,null,null,null,null,null,null,null,null,null,null,null,null,null,null,50,{"$f":"SUM(D29:S29)","v":50}]
[]
[]
[null,"LOTE 05: CONEXÕES EM PVC PBA JE"]
["05.1","ADAPTADOR PVC JE PONTA ROSCA PBA DN50 DE60MM, NORMAS: NBR 5647-1","Pç.",null,100,null,null,null,null,null,null,50,null,null,null,null,null,null,null,{"$f":"SUM(D33:S33)","v":150}]
["05.2","ADAPTADOR PVC X FIBRO CIMENTO JE PBA DN50 DE60MM, COM ANEL DE BORRACHA, NORMAS: NBR 5647-1","Pç.",null,100,null,10,null,null,null,null,20,null,null,null,null,null,null,null,130]
["05.3","ADAPTADOR PVC X FIBRO CIMENTO JE PBA DN75 DE85MM, COM ANEL DE BORRACHA, NORMAS: NBR 5647-1","Pç.",null,null,null,10,null,null,null,null,null,null,null,null,null,null,null,null,10]
["05.4","ADAPTADOR PVC JE / ROSCA PBA DN75 DE85MM, COM ANEL DE BORRACHA, NORMAS: NBR 5647-1","Pç.",null,null,null,10,null,null,null,null,null,null,null,null,null,null,null,null,10]
["05.5","ADAPTADOR PVC JE / ROSCA PBA DN100 DE110MM, COM ANEL DE BORRACHA, NORMAS: NBR 5647-1","Pç.",null,null,null,10,null,null,null,null,null,null,null,null,null,null,null,null,10]
["05.6","ADAPTADOR PVC JE / ROSCA PBA DN50 DE60MM, COM ANEL DE BORRACHA, NORMAS: NBR 5647-1","Pç.",null,null,null,20,null,null,null,null,null,null,null,null,null,null,null,null,20]
["05.7","ADAPTADOR PVC X FIBRO CIMENTO JE PBA DN100 DE110MM, COM ANEL DE BORRACHA, NORMAS: NBR 5647-1","Pç.",null,20,null,10,null,null,null,null,null,null,null,null,null,null,null,null,30]
["05.8","CAP PVC JE PBA DN50 DE60MM, COM ANEL DE BORRACHA, NORMAS: NBR 5647-1","Pç.",null,50,null,null,null,null,null,null,20,null,null,null,null,null,null,300,370]
["05.9","CAP PVC JE PBA DN75 DE85MM, COM ANEL DE BORRACHA, NORMAS: NBR 5647-1","Pç.",null,10,null,null,null,null,null,null,20,null,null,null,null,null,null,100,130]
["05.10","CAP PVC JE PBA DN100 DE110MM, COM ANEL DE BORRACHA, NORMAS: NBR 5647-","Pç.",null,10,null,null,null,null,null,null,5,null,null,null,null,null,null,100,115]
["05.11","CRUZETA PVC JE BBBB PBA DN50 DE60MM, COM ANEL DE BORRACHA, NORMAS: NBR 5647-1","Pç.",null,50,null,5,null,null,null,null,2,null,null,null,null,null,null,null,57]
["05.12","CRUZETA DE REDUÇÃO PVC JE BBBB PBA DN 75X50MM DE 85X60MM, COM ANEL DE BORRACHA, NORMAS: NBR 5647-1","Pç.",null,null,null,5,null,null,null,null,null,null,null,null,null,null,null,null,5]
["05.13","CRUZETA PVC JE BBBB PBA DN75 DE85MM, COM ANEL DE BORRACHA, NORMAS: NBR 5647-1","Pç.",null,8,null,5,null,null,null,null,null,null,null,null,null,null,null,null,13]
["05.14","CRUZETA DE REDUÇÃO PVC JE BBBB PBA DN 100X50MM DE 110X60MM, COM ANEL DE BORRACHA, NORMAS: NBR 5647-1","Pç.",null,10,null,5,null,null,null,null,null,null,null,null,null,null,null,null,15]
["05.15","CRUZETA DE REDUÇÃO PVC JE BBBB PBA DN 100X75MM DE 110X85MM, COM ANEL DE BORRACHA, NORMAS: NBR 5647-1","Pç.",null,10,null,5,null,null,null,null,null,null,null,null,null,null,null,null,15]
["05.16","CRUZETA PVC JE BBBB PBA DN100 DE110MM, COM ANEL DE BORRACHA, NORMAS: NBR 5647-1","Pç.",null,10,null,5,null,null,null,null,null,null,null,null,null,null,null,null,15]
["05.17","CURVA 22° PVC JE PB PBA DN50 DE60MM CL-20, COM ANEL DE BORRACHA, NORMAS: NBR 5647-1","Pç.",null,null,null,5,null,null,null,null,20,null,null,null,null,null,null,50,75]
["05.18","CURVA 45° PVC JE PB PBA DN50 DE60MM CL-20, COM ANEL DE BORRACHA, NORMAS: NBR 5647-1","Pç.",null,50,null,5,null,null,null,null,10,null,null,null,null,null,5,50,120]
["05.19","CURVA 90° PVC JE PB PBA DN50 DE60MM CL-20, COM ANEL DE BORRACHA, NORMAS: NBR 5647-1","Pç.",80,50,null,5,null,null,null,null,10,null,null,null,5,null,5,200,355]
["05.20","CURVA 22° PVC JE PB PBA DN65 DE75MM CL-20, COM ANEL DE BORRACHA, NORMAS: NBR 5647-1","Pç.",null,null,null,null,null,null,null,null,null,null,null,null,null,null,null,30,30]
["05.21","CURVA 22° PVC JE PB PBA DN75 DE85MM, COM ANEL DE BORRACHA, NORMAS: NBR 5647-1","Pç.",null,null,null,5,null,null,null,null,null,null,null,null,null,null,null,30,35]
["05.22","CURVA 45° PVC JE PB PBA DN75 DE85MM, COM ANEL DE BORRACHA, NORMAS: NBR 5647-1","Pç.",null,5,null,5,null,null,null,null,null,null,null,null,null,null,null,30,40]
["05.23","CURVA 90° PVC JE PB PBA DN75 DE85MM, COM ANEL DE BORRACHA, NORMAS: NBR 5647-1","Pç.",null,50,null,5,null,null,null,null,null,null,null,null,null,null,null,30,85]
["05.24","CURVA 22° PVC JE PB DN100 DE110MM, COM ANEL DE BORRACHA, NORMAS: NBR 5647-1","Pç.",null,null,null,null,null,null,null,null,null,null,null,null,null,null,null,50,50]
["05.25","CURVA 90° PVC JE PB DN100 DE110MM, COM ANEL DE BORRACHA, NORMAS: NBR 5647-1","Pç.",20,50,null,5,null,null,null,null,null,null,null,null,null,null,null,50,125]
["05.26","CURVA 45° PVC JE PB DN100 DE110MM, COM ANEL DE BORRACHA, NORMAS: NBR 5647-1","Pç.",15,10,null,10,null,null,null,null,null,null,null,null,2,null,null,50,87]
["05.27","JUNÇÃO PVC JE BBB PBA DN50 DE60MM, COM ANEL DE BORRACHA, NORMAS: NBR 5647-1","Pç.",null,null,5,5,null,null,null,null,5,null,null,null,null,null,null,null,15]
["05.28","LUVA DE CORRER PVC BOLSA/BOLSA JUNTA ELÁSTICA DN50 DE60MM, COM ANEL DE BORRACHA, NORMAS: NBR 5647-1","Pç.",100,200,null,20,30,null,60,100,100,null,null,null,30,null,200,700,1540]
["05.29","LUVA SIMPLES PVC JE PBA DN50 DE60MM, COM ANEL DE BORRACHA, NORMAS: NBR 5647-1","Pç.",null,100,null,10,null,null,null,null,10,null,null,null,null,null,null,null,120]
["05.30","LUVA DE CORRER PVC BOLSA/BOLSA JUNTA ELÁSTICA DN60 DE75MM, COM ANEL DE BORRACHA, NORMAS: NBR 5647-1","Pç.",null,50,null,10,null,null,20,null,50,null,null,null,null,null,null,100,230]
["05.31","LUVA DE CORRER PVC BOLSA/BOLSA JUNTA ELÁSTICA DN75 DE85MM, COM ANEL DE BORRACHA, NORMAS: NBR 5647-1","Pç.",60,50,5,10,null,null,20,null,50,null,null,null,20,null,50,100,365]
["05.32","LUVA SIMPLES PVC JE PBA DN75 DE85MM, COM ANEL DE BORRACHA, NORMAS: NBR 5647-1","Pç.",null,30,null,5,null,null,null,null,null,null,null,null,null,null,null,null,35]
["05.33","LUVA DE CORRER PVC BOLSA/BOLSA JUNTA ELÁSTICA DN100 DE110MM, COM ANEL DE BORRACHA, NORMAS: NBR 5647-1","Pç.",60,20,10,10,null,null,null,100,50,null,null,null,20,null,30,500,{"$f":"SUM(D65:S65)","v":800}]
["05.34","LUVA SIMPLES PVC JE PBA DN100 DE110MM, COM ANEL DE BORRACHA, NORMAS: NBR 5647-1","Pç.",null,15,null,10,null,null,null,null,10,null,null,null,null,null,null,null,35]
["05.35","REDUÇÃO PVC JE PB PBA 75MM x 60MM, COM ANEL DE BORRACHA, NORMAS: NBR 5647-1","Pç.",null,12,null,5,null,null,null,null,20,null,null,null,null,null,null,20,57]
["05.36","REDUÇÃO PVC JE BB PBA 85MM x 60MM, COM ANEL DE BORRACHA, NORMAS: NBR 5647-1","Pç.",15,12,null,5,null,null,null,null,20,null,null,null,null,null,null,null,52]
["05.37","REDUÇÃO PVC JE PB PBA 85MM x 60MM, COM ANEL DE BORRACHA, NORMAS: NBR 5647-1","Pç.",15,12,null,5,null,null,null,null,null,null,null,null,null,null,null,50,82]
["05.38","REDUÇÃO PVC JE PB PBA 85MM x 75MM, COM ANEL DE BORRACHA, NORMAS: NBR 5647-1","Pç.",null,12,null,5,null,null,null,null,null,null,null,null,null,null,null,10,27]
["05.39","REDUÇÃO PVC JE BB PBA 110MM x 85MM, COM ANEL DE BORRACHA, NORMAS: NBR 5647-1","Pç.",null,12,null,5,null,null,null,null,20,null,null,null,null,null,null,10,47]
["05.40","REDUÇÃO PVC JE BB PBA 110MM x 60MM, COM ANEL DE BORRACHA, NORMAS: NBR 5647-1",null,null,12,null,5,null,null,null,null,20,null,null,null,null,null,null,null,37]
["05.41","REDUÇÃO PVC JE PB PBA 110MM x 60MM, COM ANEL DE BORRACHA, NORMAS: NBR 5647-1","Pç.",null,12,null,5,null,null,null,null,null,null,null,null,null,null,null,20,37]
["05.42","REDUÇÃO PVC JE PB PBA 110MM x 85MM, COM ANEL DE BORRACHA, NORMAS: NBR 5647-1","Pç.",null,12,null,5,null,10,null,null,null,null,null,null,null,null,null,50,77]
["05.43","TÊ PVC JE BBB PBA DN50 DE60MM, COM ANEL DE BORRACHA, NORMAS: NBR 5647-1","Pç.",null,200,null,5,null,null,null,null,50,null,null,null,5,null,null,50,310]
["05.44","TÊ DE REDUÇÃO JE BBB PBA DN 75MM X 50MM DE 85MM X 60MM, COM ANEL DE BORRACHA, NORMAS: NBR 5647-1","Pç.",null,10,null,5,null,null,null,null,null,null,null,null,5,null,null,0,20]
["05.45","TÊ PVC JE BBB PBA DN75 DE85MM, COM ANEL DE BORRACHA, NORMAS: NBR 5647-1","Pç.",null,10,null,5,null,null,null,null,null,null,null,null,5,null,null,10,30]
["05.46","TÊ DE REDUÇÃO JE BBB PBA DN 100MM X 50MM DE 110MM X 60MM, COM ANEL DE BORRACHA, NORMAS: NBR 5647-1","Pç.",null,10,null,5,null,null,null,null,null,null,null,null,null,null,null,10,25]
["05.47","TÊ DE REDUÇÃO JE BBB PBA DN 100MM X 75MM DE 110MM X 85MM, COM ANEL DE BORRACHA, NORMAS: NBR 5647-1","Pç.",null,null,null,5,null,null,null,null,null,null,null,null,null,null,null,10,15]
["05.48","TÊ PVC JE BBB PBA DN100 DE110MM, COM ANEL DE BORRACHA, NORMAS: NBR 5647-1","Pç.",35,10,5,5,null,null,null,null,null,null,2,null,null,null,null,20,77]
["05.49","TÊ DE REDUÇÃO JE BBB PBA DE150MM X 60MM COM ANEL DE BORRACHA, NORMAS: NBR 5647-1","Pç.",null,null,null,null,null,null,null,null,10,null,null,null,null,null,null,10,20]
["05.50","TÊ DE REDUÇÃO JE PBA DN85MM X 60MM, COM ANEL DE BORRACHA, NORMAS: NBR 5647-1","Pç.",null,null,null,null,null,10,null,null,null,null,null,null,null,null,null,null,10]
[]
[]
[null,"LOTE 06: ADESIVOS, FITA VEDA ROSCA, E LUBRIFICANTES"]
["06.1","ADESIVO PLÁSTICO PARA TUBOS E CONEXÕES DE PVC RÍGIDO (BISNAGA) 75g","Pç.",400,100,null,200,100,null,null,100,500,null,100,null,null,null,300,1000,{"$f":"SUM(D86:S86)","v":2800}]
["06.2","ADESIVO PLÁSTICO PARA TUBOS E CONEXÕES DE PVC RÍGIDO (FRASCO) 175g","Pç.",60,600,10,null,null,null,null,null,null,null,null,45,50,50,null,null,815]
["06.3","ADESIVO PLÁSTICO PARA TUBOS E CONEXÕES DE PVC RÍGIDO (FRASCO) 850g","Pç.",null,null,5,null,null,null,null,null,null,null,null,65,50,30,null,null,150]
["06.4","FITA VEDA ROSCA 18MM X 50 METROS","Pç.",300,null,50,100,150,null,100,100,300,null,40,750,100,30,30,1000,3050]
["06.5","PASTA LUBRIFICANTE EM BISNAGA COM BICO APLICADOR CAPACIDADE 160 GRS.","Pç.",null,null,20,null,null,null,30,null,100,null,null,null,null,null,50,null,200]
["06.6","PASTA LUBRIFICANTE EM BISNAGA COM BICO APLICADOR CAPACIDADE 400 GRS.","Pç.",null,null,null,null,null,null,null,null,null,null,20,55,30,null,null,null,105]
["06.7","PASTA LUBRIFICANTE EM BISNAGA COM BICO APLICADOR CAPACIDADE 1.000 GRS.","Pç.",100,null,null,10,null,null,null,50,null,null,null,null,null,null,null,500,660]
["06.8","SOLUÇÃO PREPRADORA FRASCO 1.000ML","Pç.",null,null,null,null,null,null,null,null,null,null,null,null,null,null,null,300,300]
[]
[]
[null,"LOTE 07: CONEXÕES DEFOFO – JE/JEI/JERI"]
["07.1","LUVA DE CORRER DE FOFO MPVC BOLSA/BOLSA JE COM ANÉIS PARA TUBO PVC DEFOFO DN100MM, NORMAS: NBR 7665/2007","Pç.",null,20,null,null,null,null,null,null,50,null,null,null,null,null,null,500,{"$f":"SUM(D97:S97)","v":570}]
["07.2","LUVA DE CORRER DE FOFO MPVC BOLSA/BOLSA JE/JEI/JERI COM ANÉIS PARA TUBO PVC DEFOFO DN100MM, NORMAS: NBR 7665/2007","Pç.",null,20,null,null,5,10,null,null,5,null,null,null,10,null,50,100,200]
["07.3","LUVA DE CORRER DEFOFO MPVC BOLSA/BOLSA JE COM ANÉIS PARA TUBO PVC DEFOFO DN150MM, NORMAS: NBR 7665/2007","Pç.",null,null,null,10,5,5,null,10,50,null,2,10,null,null,null,500,592]
["07.4","LUVA DE CORRER DEFOFO MPVC BOLSA/BOLSA JE/JEI/JERI COM ANÉIS PARA TUBO PVC DEFOFO DN150MM, NORMAS: NBR 7665/2007","Pç.",null,12,5,null,null,null,null,null,5,null,null,null,10,null,null,100,132]
["07.5","LUVA DE CORRER DEFOFO MPVC BOLSA/BOLSA JE COM ANÉIS PARA TUBO PVC DEFOFO DN200MM, NORMAS: NBR 7665/2007","Pç.",null,null,null,6,null,null,null,null,50,null,null,null,null,null,null,300,356]
["07.6","LUVA DE CORRER DEFOFO MPVC BOLSA/BOLSA JE/JEI/JERI COM ANÉIS PARA TUBO PVC DEFOFO DN200MM, NORMAS: NBR 7665/2007","Pç.",null,10,null,null,null,null,null,10,5,null,null,null,null,null,null,50,75]
["07.7","LUVA DE CORRER DEFOFO MPVC BOLSA/BOLSA JE COM ANÉIS PARA TUBO PVC DEFOFO DN250MM, NORMAS: NBR 7665/2007","Pç.",null,null,null,6,null,null,null,null,null,null,null,null,null,null,null,150,156]
["07.8","LUVA DE CORRER DEFOFO MPVC BOLSA/BOLSA JE/JEI/JERI COM ANÉIS PARA TUBO PVC DEFOFO DN250MM, NORMAS: NBR 7665/2007","Pç.",null,null,null,null,null,null,null,null,null,null,null,null,null,null,null,50,50]
["07.9","LUVA DE CORRER DEFOFO MPVC BOLSA/BOLSA JE COM ANÉIS PARA TUBO PVC DEFOFO DN300MM, NORMAS: NBR 7665/2007","Pç.",null,null,null,4,null,null,null,null,null,null,null,null,null,null,null,100,104]
["07.10","LUVA DE CORRER DEFOFO MPVC BOLSA/BOLSA JE/JEI/JERI COM ANÉIS PARA TUBO PVC DEFOFO DN300MM, NORMAS: NBR 7665/2007","Pç.",null,10,null,4,null,null,null,null,null,null,null,null,null,null,null,30,44]
[]
[]
[null,"LOTE 08: CONEXÕES PVC SOLDÁVEIS"]
["08.1","ADAPTADOR SOLDÁVEL CURTO COM BOLSA E ROSCA PVC PARA REGISTRO DE 20MM X 1/2”, NORMAS: NBR 5648","Pç.",400,200,100,100,300,null,30,500,500,null,null,450,600,50,50,800,{"$f":"SUM(D110:S110)","v":4080}]
["08.2","ADAPTADOR SOLDÁVEL CURTO COM BOLSA E ROSCA PVC PARA REGISTRO DE 25MM X 3/4”, NORMAS:  NBR 5648","Pç.",null,200,null,50,20,null,20,30,250,null,null,250,100,null,null,400,1320]
["08.3","ADAPTADOR SOLDÁVEL CURTO COM BOLSA E ROSCA PVC PARA REGISTRO DE 32MM X 1”, NORMAS: NBR 5648","Pç.",100,100,null,10,null,null,null,30,50,null,null,250,20,null,10,300,870]
["08.4","ADAPTADOR SOLDÁVEL CURTO COM BOLSA E ROSCA PVC PARA REGISTRO DE 40MMX1 ¼”, NORMAS:  NBR 5648","Pç.",null,50,null,null,null,null,20,null,5,null,null,null,5,null,null,300,380]
["08.5","ADAPTADOR SOLDÁVEL CURTO COM BOLSA E ROSCA PVC PARA REGISTRO DE 50MMX1 ½”, NORMAS: NBR 5648","Pç.",null,20,5,null,null,null,30,null,50,null,null,250,null,null,null,300,655]
["08.6","ADAPTADOR SOLDÁVEL CURTO COM BOLSA E ROSCA PVC PARA REGISTRO DE 60MMX2”, NORMAS: NBR 5648  ","Pç.",40,100,null,null,null,null,null,null,50,null,null,250,10,null,null,500,950]
["08.7","ADAPTADOR SOLDÁVEL CURTO COM BOLSA E ROSCA PVC PARA REGISTRO DE 75MMX2 ½”, NORMAS:  NBR 5648","Pç.",null,null,null,null,null,null,null,null,5,null,null,250,5,null,null,100,360]
["08.8","ADAPTADOR SOLDÁVEL CURTO COM BOLSA E ROSCA PVC PARA REGISTRO DE 85MMX3”, NORMAS:  NBR 5648","Pç.",30,null,null,null,null,null,null,null,5,null,null,150,5,null,10,100,300]
["08.9","ADAPTADOR SOLDÁVEL COM FLANGES LIVRES PARA CAIXA D’ÁGUA 110MM X 4”, NORMAS: BR 5648","Pç.",20,null,null,null,null,null,null,null,5,null,null,15,null,null,null,null,40]
["08.10","ADAPTADOR SOLDAVEL CURTO COM BOLSA E ROSCA PVC 110MMX4”, NORMAS: BR 5648","Pç.",40,12,null,null,null,null,null,null,null,null,null,15,20,null,null,100,187]
["08.11","ADAPTADOR PVC SOLDAVEL COM FLANGE ANEL 25MM, PARA CAIXA D´ÁGUA, NORMA: BR 5648","Pç",null,null,null,null,null,null,null,null,null,null,null,null,null,20,null,null,20]
["08.12","BUCHA DE REDUÇÃO SOLDÁVEL CURTA PVC DE 25mmX20mm, NORMAS: NBR 5648","Pç.",600,500,null,200,10,null,30,null,300,null,null,550,null,50,null,200,2440]
["08.13","BUCHA DE REDUÇÃO SOLDÁVEL CURTA PVC DE 32mmX25mm, NORMAS: NBR 5648","Pç.",100,300,null,100,5,null,20,null,200,null,null,550,null,50,null,50,1375]
["08.14","BUCHA DE REDUÇÃO SOLDÁVEL LONGA PVC DE 32mmX20mm, NORMAS: NBR 5648","Pç.",60,null,null,null,null,null,20,null,50,null,null,100,null,null,null,50,280]
["08.15","BUCHA DE REDUÇÃO SOLDÁVEL CURTA PVC DE 40mmX32mm, NORMAS:  NBR 5648","Pç.",null,100,null,null,null,null,15,null,50,null,null,null,10,null,null,null,175]
["08.17","BUCHA DE REDUÇÃO SOLDÁVEL LONGA PVC DE 40mmX25mm, NORMAS: NBR 5648","Pç.",null,null,null,null,null,null,15,null,5,null,null,null,null,null,null,null,20]
["08.18","BUCHA DE REDUÇÃO SOLDÁVEL CURTA PVC DE50mmX40mm, NORMAS: NBR 5648","Pç.",null,100,null,null,null,null,15,null,50,null,null,null,10,null,null,null,175]
["08.19","BUCHA DE REDUÇÃO SOLDÁVEL LONGA PVC DE 50mmX25mm, NORMAS: NBR 5648","Pç.",null,null,null,null,null,null,10,null,null,null,null,null,null,null,null,null,10]
["08.20","BUCHA DE REDUÇÃO SOLDÁVEL LONGA PVC DE 50mmX32mm, NORMAS: NBR 5648","Pç.",null,null,null,null,5,null,20,null,50,null,null,200,null,null,null,null,275]
["08.21","BUCHA DE REDUÇÃO SOLDÁVEL CURTA PVC DE60mmX50mm, NORMAS:  NBR 5648","Pç.",null,100,null,5,5,null,10,null,50,null,null,200,10,null,null,null,380]
["08.22","BUCHA DE REDUÇÃO SOLDÁVEL LONGA PVC DE 60mmX25mm, NORMAS: NBR 5648","Pç.",null,null,null,null,null,null,20,null,20,null,null,null,null,null,null,null,40]
["08.23","BUCHA DE REDUÇÃO SOLDÁVEL LONGA PVC DE 60mmX32mm, NORMAS: NBR 5648","Pç.",null,null,null,null,10,null,50,null,20,null,null,100,null,null,null,null,180]
["08.24","BUCHA DE REDUÇÃO SOLDÁVEL LONGA PVC DE 60mmX40mm, NORMAS: NBR 5648","Pç.",null,null,null,null,null,null,10,null,50,null,null,null,null,null,null,null,60]
["08.25","BUCHA DE REDUÇÃO SOLDÁVEL LONGA PVC DE 60mmX50mm, NORMAS: NBR 5648","Pç.",null,null,null,null,5,null,10,null,5,null,null,100,null,null,null,null,120]
["08.26","BUCHA DE REDUÇÃO SOLDÁVEL CURTA PVC DE75mmX60mm, NORMAS:  NBR 5648","Pç.",null,50,null,5,null,null,10,null,5,null,null,100,null,null,null,null,170]
["08.27","BUCHA DE REDUÇÃO SOLDÁVEL LONGA PVC DE 75mmX50mm, NORMAS:  NBR 5648","Pç.",null,null,null,null,null,null,10,null,null,null,null,200,null,null,null,null,210]
["08.28","BUCHA DE REDUÇÃO SOLDÁVEL CURTA PVC DE 85MMX75MM, NORMAS:  NBR 5648","Pç.",null,50,null,5,null,null,10,null,null,null,null,200,null,null,null,null,265]
["08.29","BUCHA DE REDUÇÃO SOLDÁVEL LONGA PVC DE 110mmX60mm,NORMAS: NBR 5648","Pç.",20,null,null,null,null,null,null,null,5,null,null,null,null,null,null,null,25]
["08.30","BUCHA DE REDUÇÃO SOLDÁVEL LONGA PVC DE 85mmX60mm, NORMAS:  NBR 5648","Pç.",15,null,null,null,null,null,10,null,null,null,null,null,null,null,null,null,25]
["08.31","BUCHA DE REDUÇÃO SOLDÁVEL CURTA PVC DE 110MMX85MM, NORMAS: NBR 5648","Pç.",15,null,null,5,null,10,null,null,null,null,null,30,null,null,null,null,60]
["08.32","CAP SOLDÁVEL PVC DE 20 MM, NORMAS:  NBR 5648","Pç.",null,600,null,100,30,null,60,null,300,null,null,300,500,50,100,500,2540]
["08.33","CAP SOLDÁVEL PVC DE 25 MM, NORMAS:  NBR 5648","Pç.",null,500,null,50,null,null,20,null,100,null,null,300,null,30,10,500,1510]
["08.34","CAP SOLDÁVEL PVC DE 32 MM, NORMAS:  NBR 5648","Pç.",null,200,10,20,5,null,20,null,50,null,null,300,10,30,10,500,{"$f":"SUM(D142:S142)","v":1155}]
["08.35","CAP SOLDÁVEL PVC DE 40 MM, NORMAS:  NBR 5648","Pç.",null,100,null,null,null,null,10,null,50,null,null,null,5,null,null,500,665]
["08.36","CAP SOLDÁVEL PVC DE 50 MM, NORMAS: NBR 5648","Pç.",null,null,null,10,5,null,10,null,50,null,null,100,20,null,null,200,395]
["08.37","CAP SOLDÁVEL PVC DE 60 MM, NORMAS:  NBR 5648","Pç.",30,100,null,10,5,null,null,null,50,null,null,100,30,null,10,500,835]
["08.38","CAP SOLDÁVEL PVC DE 75MM, NORMAS:  NBR 5648","Pç.",null,15,null,5,null,null,5,null,5,null,null,100,null,null,null,200,330]
["08.39","CAP SOLDÁVEL PVC DE 85 MM, NORMAS: NBR 5648","Pç.",20,10,null,5,null,null,5,null,5,null,null,100,null,null,null,200,345]
["08.40","CAP SOLDÁVEL PVC DE 110 MM, NORMAS: NBR 5648","Pç.",50,10,null,5,null,null,null,null,5,null,null,20,null,null,null,100,190]
["08.41","COLAR TOMADA PVC COM TRAVAS EM PVC 32MM X 1/2”, NORMAS: NBR 5648","Pç.",null,null,null,50,15,null,10,null,200,null,null,300,null,null,200,200,975]
["08.42","COLAR TOMADA PVC COM TRAVAS EM PVC 32MM X 3/4”, NORMAS: NBR 5648","Pç.",null,300,null,null,null,null,10,null,10,null,null,null,null,null,30,null,350]
["08.43","COLAR TOMADA PVC COM TRAVAS EM PVC 40MM X 1/2”, NORMAS: NBR 5648","Pç.",null,null,null,null,5,null,null,null,100,null,null,null,10,null,null,200,315]
["08.44","COLAR TOMADA PVC COM TRAVAS EM PVC 40MM X 3/4”, NORMAS: NBR 5648","Pç.",null,200,null,null,null,null,null,null,5,null,null,null,null,null,null,null,205]
["08.45","COLAR TOMADA PVC COM TRAVAS EM PVC 50MM X 1/2”, NORMAS: NBR 5648","Pç.",null,null,null,100,15,null,15,null,200,null,null,300,10,null,null,200,840]
["08.46","COLAR TOMADA PVC COM TRAVAS EM PVC 50MM X 3/4”, NORMAS: NBR 5648","Pç.",null,null,null,null,null,null,15,null,5,null,null,null,null,null,null,null,20]
["08.47","COLAR TOMADA PVC COM TRAVAS EM PVC 60MM X 1/2”, NORMAS: NBR 5648","Pç.",null,null,null,100,20,null,null,null,400,null,null,300,50,100,200,700,1870]
["08.48","COLAR TOMADA PVC COM TRAVAS EM PVC 60MM X 3/4”, NORMAS: NBR 5648","Pç.",null,800,null,null,null,null,20,null,5,null,null,null,null,null,30,100,955]
["08.49","COLAR TOMADA PVC COM TRAVAS EM PVC 75MM X 1/2”, NORMAS: NBR 5648","Pç.",null,null,null,20,5,null,null,null,50,null,null,100,null,null,null,null,175]
["08.50","COLAR TOMADA PVC COM TRAVAS EM PVC 75MM X 3/4”, NORMAS: NBR 5648","Pç.",null,150,null,null,null,null,null,null,null,null,null,null,null,null,null,null,150]
["08.51","COLAR TOMADA PVC COM TRAVAS EM PVC 85MM X 1/2”, NORMAS: NBR 5648","Pç.",null,null,null,50,5,null,null,null,null,null,null,100,null,50,null,null,205]
["08.52","COLAR TOMADA PVC COM TRAVAS EM PVC 85MM X 3/4”, NORMAS: NBR 5648","Pç.",null,100,null,null,null,100,null,null,null,null,null,null,null,null,null,null,200]
["08.53","COLAR TOMADA PVC COM TRAVAS EM PVC 110MM X 1/2”, NORMAS: NBR 5648","Pç.",null,null,null,50,5,null,10,null,null,null,null,100,null,null,null,null,165]
["08.54","COLAR TOMADA PVC COM TRAVAS EM PVC 110MM X 3/4”, NORMAS: NBR 5648","Pç.",null,150,null,null,null,null,null,null,null,null,null,null,null,null,null,null,150]
["08.55","CRUZETA SOLDÁVEL PVC 25MM, NORMAS: NBR 5648","Pç.",null,null,null,5,null,null,null,null,null,null,null,null,null,null,null,null,5]
["08.56","CRUZETA SOLDÁVEL PVC 50MM, NORMAS: NBR 5648","Pç.",null,null,null,5,null,null,null,null,null,null,null,null,null,null,null,null,5]
["08.57","CURVA 45º SOLDÁVEL PVC 20MM, NORMAS:  NBR 5648",null,null,null,null,50,null,null,null,null,5,null,null,100,null,null,null,null,155]
["08.58","CURVA 90º SOLDÁVEL PVC 20MM, NORMAS:  NBR 5648","Pç.",null,500,null,null,50,null,null,null,5,null,null,null,20,null,null,null,575]
["08.59","CURVA 45º SOLDÁVEL PVC 25MM, NORMAS:  NBR 5648","Pç.",null,50,null,50,null,null,null,null,5,null,null,null,null,null,null,null,105]
["08.60","CURVA 90º SOLDÁVEL PVC 25MM, NORMAS:  NBR 5648","Pç.",null,200,null,null,null,null,null,null,5,null,null,null,null,null,null,null,205]
["08.61","CURVA 45º SOLDÁVEL PVC 32MM, NORMAS:  NBR 5648","Pç.",null,100,null,50,null,null,null,null,5,null,null,100,null,null,null,null,255]
["08.62","CURVA 90º SOLDÁVEL PVC 32MM, NORMAS:  NBR 5648","Pç.",null,100,10,null,null,null,null,null,5,null,null,100,null,null,10,null,225]
["08.63","CURVA 45º SOLDÁVEL PVC 40MM, NORMAS:  NBR 5648","Pç.",null,10,null,null,null,null,null,null,null,null,null,100,null,null,null,null,110]
["08.64","CURVA 90º SOLDÁVEL PVC 40MM, NORMAS:  NBR 5648","Pç.",null,50,null,null,null,null,null,null,null,null,null,100,null,null,null,null,150]
["08.65","CURVA 45º SOLDÁVEL PVC 50MM, NORMAS:  NBR 5648","Pç.",null,10,null,10,null,null,null,null,5,null,null,100,null,null,null,null,125]
["08.66","CURVA 90º SOLDÁVEL PVC 50MM, NORMAS:  NBR 5648","Pç.",null,20,null,10,null,null,10,null,5,null,null,100,null,null,null,null,{"$f":"SUM(D174:S174)","v":145}]
["08.67","CURVA 45º SOLDÁVEL PVC 60MM, NORMAS:  NBR 5648","Pç",60,100,null,10,null,null,5,null,5,null,5,100,null,null,10,null,295]
["08.68","CURVA 90º SOLDÁVEL PVC 60MM, NORMAS:  NBR 5648","Pç.",100,200,null,10,null,null,null,null,5,null,10,100,5,null,10,null,440]
["08.69","CURVA 45º SOLDÁVEL PVC 75MM, NORMAS:  NBR 5648","Pç.",null,18,null,5,null,null,null,null,null,null,null,100,null,null,null,null,123]
["08.70","CURVA 90º SOLDÁVEL PVC 75MM, NORMAS:  NBR 5648","Pç.",null,30,null,null,null,null,null,null,null,null,null,100,null,null,null,null,130]
["08.71","CURVA 45º SOLDÁVEL PVC 85MM, NORMAS:  NBR 5648","Pç",null,12,null,5,null,null,null,null,null,null,null,100,null,null,null,null,117]
["08.72","CURVA 90º SOLDÁVEL PVC 85MM, NORMAS:  NBR 5648","Pç.",null,30,null,null,null,null,null,null,null,null,null,100,null,null,null,null,130]
["08.73","CURVA 45º SOLDÁVEL PVC 110MM, NORMAS:  NBR 5648","Pç.",null,12,null,5,null,null,null,null,null,null,null,100,null,null,null,null,117]
["08.74","CURVA 90º SOLDÁVEL PVC 110MM, NORMAS:  NBR 5648","Pç.",null,40,null,null,null,null,null,null,null,null,null,100,null,null,null,null,140]
["08.75","JOELHO 90º SOLDÁVEL E COM ROSCA (LR) PVC 20MMX1/2” COM BUCHA LATÃO, NORMAS: NBR 5648","Pç.",3000,100,null,null,null,null,null,null,null,null,null,null,null,null,null,null,3100]
["08.76","JOELHO 90º SOLDÁVEL E COM ROSCA (LR) PVC 25MMX3/4”, COM BUCHA LATÃO NORMAS: NBR 5648","Pç.",null,50,null,null,null,null,null,null,null,null,null,null,null,null,null,null,50]
["08.77","JOELHO 90º SOLDÁVEL E COM ROSCA (LR) PVC 20MMX1/2”, NORMAS: NBR 5648","Pç",null,null,null,100,null,null,50,null,null,null,null,400,null,200,50,null,800]
["08.78","JOELHO 90º SOLDÁVEL E COM ROSCA (LR) PVC 25MMX3/4”, NORMAS: NBR 5648","Pç.",null,null,null,50,null,null,null,null,null,null,null,200,null,null,null,null,250]
["08.79","JOELHO REDUÇÃO 90º SOLDÁVEL E COM ROSCA (LR) PVC 25MMX1/2”, NORMAS: NBR 5648","Pç",null,null,null,50,null,null,50,null,null,null,null,200,null,50,null,null,350]
["08.80","JOELHO REDUÇÃO 90º SOLDÁVEL E COM ROSCA (LR) PVC 32MMX3/4”, NORMAS: NBR 5648","Pç",null,null,null,20,null,null,null,null,null,null,null,100,null,null,null,null,120]
["08.81","JOELHO 45º SOLDAVEL PVC DE 20MM, NORMAS: NBR 5648","Pç.",null,null,null,50,null,null,null,null,5,null,null,100,50,null,250,50,505]
["08.82","JOELHO 90º SOLDÁVEL PVC 20MM, NORMAS: NBR 5648","Pç.",4000,5000,null,100,300,null,2000,2000,1000,null,200,400,2000,500,200,700,18400]
["08.83","JOELHO 45º SOLDAVEL PVC DE 25MM, NORMAS: NBR 5648","Pç.",null,null,null,null,null,null,null,null,null,null,null,null,null,20,100,null,120]
["08.84","JOELHO 90º SOLDÁVEL PVC 25MM, NORMAS: NBR 5648","Pç",null,800,null,50,null,null,50,50,200,null,null,200,50,50,null,700,2150]
["08.85","JOELHO 45º SOLDAVEL PVC DE 32MM, NORMAS:  NBR 5648","Pç.",null,null,null,20,null,null,null,null,5,null,null,200,100,50,30,null,405]
["08.86","JOELHO 90º SOLDÁVEL PVC 32MM, NORMAS: NBR 5648","Pç.",null,200,null,20,null,null,null,null,150,null,null,200,10,null,null,300,880]
["08.87","JOELHO 45º SOLDAVEL PVC DE 40MM, NORMAS:  NBR 5648","Pç.",null,null,null,null,null,null,null,null,null,null,null,null,null,null,30,null,30]
["08.88","JOELHO 90º SOLDÁVEL PVC 40MM, NORMAS: NBR 5648","Pç.",null,100,null,null,null,null,null,null,50,null,null,null,10,null,null,300,460]
["08.89","JOELHO 45º SOLDAVEL PVC DE 50MM, NORMAS: NBR 5648","Pç.",null,null,null,20,null,null,null,null,5,null,null,200,null,null,200,null,425]
["08.90","JOELHO 90º SOLDÁVEL PVC 50MM, NORMAS:NBR 5648","Pç.",null,50,null,null,null,null,50,null,100,null,null,200,20,null,null,200,620]
["08.91","JOELHO 45º SOLDAVEL PVC DE 60MM, NORMAS:  NBR 5648","Pç.",null,null,null,20,null,null,null,null,5,null,null,200,10,null,20,null,255]
["08.92","JOELHO 90º SOLDÁVEL PVC 60MM, NORMAS: NBR 5648","Pç.",null,300,null,null,null,null,100,null,100,null,null,200,null,30,null,500,1230]
["08.93","JOELHO 45º SOLDAVEL PVC DE 75MM, NORMAS:  NBR 5648","Pç.",null,null,null,null,null,null,null,null,null,null,null,100,null,null,null,null,100]
["08.94","JOELHO 90º SOLDÁVEL PVC 75MM, NORMAS: NBR 5648","Pç.",null,20,null,null,null,null,null,null,50,null,null,100,null,null,null,20,190]
["08.95","JOELHO 45º SOLDAVEL PVC DE 85MM, NORMAS: NBR 5648","Pç.",null,null,null,null,null,null,null,null,null,null,null,100,5,null,null,null,105]
["08.96","JOELHO 90º SOLDÁVEL PVC 85MM, NORMAS: NBR 5648","Pç.",null,20,null,null,null,null,null,null,50,null,null,100,null,10,null,20,200]
["08.97","JOELHO 45º SOLDAVEL PVC DE 110MM, NORMAS:  NBR 5648","Pç.",null,null,null,null,null,null,null,null,null,null,null,100,5,20,null,5,130]
["08.98","JOELHO 90º SOLDÁVEL PVC 110MM, NORMAS: NBR 5648","Pç.",null,20,null,null,null,null,null,null,null,null,null,100,5,20,null,20,{"$f":"SUM(D206:S206)","v":165}]
["08.99","LUVA DE CORRER PVC PARA TUBO SOLDAVEL 20MM, COM ANÉIS DE BORRACHA, NORMAS: NBR 5648","Pç.",null,500,null,50,15,null,200,null,200,null,4,200,20,40,50,800,2079]
[8100,"LUVA DE CORRER PVC PARA TUBO SOLDAVEL 25MM, COM ANÉIS DE BORRACHA, NORMAS: NBR 5648","Pç.",null,300,10,50,null,null,null,null,100,null,null,100,null,50,null,500,1110]
[8101,"LUVA DE CORRER PVC PARA TUBO SOLDAVEL 32MM, COM ANÉIS DE BORRACHA, NORMAS: NBR 5648","Pç.",null,200,null,50,30,null,null,null,150,null,null,400,null,50,50,200,1130]
[8102,"LUVA DE CORRER PVC PARA TUBO SOLDAVEL 40MM, COM ANÉIS DE BORRACHA, NORMAS: NBR 5648","Pç.",null,100,null,null,5,null,null,null,20,null,null,null,null,10,null,200,335]
[8103,"LUVA DE CORRER PVC PARA TUBO SOLDAVEL 50MM, COM ANÉIS DE BORRACHA, NORMAS: NBR 5648","Pç.",null,50,null,10,10,50,50,100,null,null,4,300,10,null,null,150,734]
[8104,"LUVA DE CORRER PVC PARA TUBO SOLDAVEL 60MM, COM ANÉIS DE BORRACHA, NORMAS: NBR 5648","Pç.",null,1200,null,10,30,50,200,null,100,null,null,300,null,100,50,700,2740]
[8105,"LUVA SOLDÁVEL PVC  20MM, NORMAS: NBR 5648","Pç.",2000,2000,null,100,null,null,2000,1000,1000,null,null,600,200,500,null,null,9400]
[8106,"LUVA SOLDÁVEL PVC 25MM, NORMAS: NBR 5648","Pç",200,600,null,50,null,null,60,50,300,null,null,200,10,null,null,300,1770]
[8107,"LUVA SOLDÁVEL PVC 32MM, NORMAS: NBR 5648","Pç.",null,200,null,50,null,50,200,null,100,null,null,200,null,null,null,150,950]
[8108,"LUVA SOLDÁVEL PVC 40MM, NORMAS: NBR 5648","Pç.",null,20,null,null,null,null,null,null,50,null,null,null,null,null,null,50,120]
[8109,"LUVA SOLDÁVEL PVC 50MM, NORMAS: NBR 5648","Pç.",null,10,null,10,null,30,100,null,50,null,null,400,null,null,null,50,650]
[8110,"LUVA SOLDÁVEL PVC 60MM, NORMAS: NBR 5648","Pç.",null,100,null,6,null,30,200,null,100,null,null,300,5,null,null,50,791]
[8111,"LUVA SOLDÁVEL PVC 75MM, NORMAS: NBR 5648","Pç.",null,20,null,null,null,null,null,null,null,null,null,100,null,null,null,null,120]
[8112,"LUVA SOLDÁVEL PVC 85MM, NORMAS: NBR 5648","Pç.",null,20,null,6,null,null,null,null,10,null,null,100,null,null,null,null,136]
[8113,"LUVA SOLDÁVEL PVC 110MM, NORMAS: NBR 5648","Pç.",null,12,null,5,null,null,null,null,null,null,null,200,null,null,null,null,217]
[8114,"LUVA SOLDÁVEL E COM ROSCA(LR) PVC COM BUCHA LATÃO 25MMX3/4”, NORMAS: NBR 5648","Pç.",500,300,20,null,null,null,null,null,null,null,null,100,null,null,null,null,920]
[8115,"LUVA SOLDÁVEL E COM ROSCA(LR) PVC COM BUCHA LATÃO 20MMX1/2”, NORMAS: NBR 5648","Pç.",2000,3000,100,null,null,null,null,null,1000,null,null,null,null,null,null,null,6100]
[8116,"LUVA SOLDÁVEL E COM ROSCA (LR) PVC COM BUCHA LATÃO 32MMX1”, NORMAS: NBR 5648","Pç.",null,100,null,null,null,null,null,null,null,null,null,null,null,null,null,null,100]
[8117,"LUVA REDUÇÃO SOLDÁVEL E COM ROSCA(LR) PVC COM BUCHA LATÃO 25MMX1/2”, NORMAS: NBR 5648","Pç.",null,null,null,null,null,null,null,null,50,null,null,null,null,null,null,null,50]
[8118,"LUVA SOLDÁVEL E COM ROSCA (LR) PVC 20MMX1/2”, NORMAS: NBR 5648","Pç.",null,2000,200,100,300,null,300,null,null,null,null,600,1000,600,null,null,5100]
[8119,"LUVA DE REDUÇÃO SOLDAVEL 25X20 MM, NORMAS: NBR 5648","Pç.",60,null,100,50,null,null,null,null,100,null,null,100,null,null,null,null,410]
[8120,"LUVA SOLDÁVEL E COM ROSCA (LR) PVC 25MMX1/2”, NORMAS: NBR 5648","Pç.",null,null,null,50,null,null,null,null,null,null,null,100,null,null,null,300,450]
[8121,"LUVA DE REDUÇÃO SOLDAVEL E COM ROSCA (LR) 25MM X 1/2\", NORMAS: NBR 5648","Pç.",null,null,null,null,null,null,null,null,null,null,null,100,null,null,null,300,400]
[8122,"LUVA SOLDÁVEL E COM ROSCA (LR) PVC 25MMX3/4”, NORMAS: NBR 5648","Pç.",null,300,20,50,null,null,30,null,null,null,null,100,null,50,null,100,650]
[8123,"LUVA DE REDUÇÃO SOLDAVEL 32X25 MM, NORMAS: NBR 5648","Pç.",null,null,null,50,null,null,null,null,50,null,null,null,null,null,null,100,200]
[8124,"LUVA SOLDAVEL E COM ROSCA (LR) 32MM X 1\", NORMAS: NBR 5648","Pç.",null,null,null,20,null,null,20,null,null,null,null,200,null,null,null,100,340]
[8125,"LUVA DE REDUÇÃO SOLDAVEL 40X32 MM, NORMAS: NBR 5648","Pç.",null,null,null,null,null,null,null,null,null,null,null,null,null,null,null,50,50]
[8126,"LUVA SOLDÁVEL E COM ROSCA (LR) PVC 32MMX1”, NORMAS: NBR 5648","Pç.",null,200,null,20,null,null,null,null,null,null,null,null,null,null,null,50,270]
[8127,"LUVA SOLDÁVEL E COM ROSCA (LR) PVC 40MMX 1 1/4”, NORMAS: NBR 5648","Pç.",null,60,null,null,null,null,null,null,null,null,null,null,null,null,null,50,110]
[8128,"LUVA DE REDUÇÃO SOLDAVEL 50X40 MM, NORMAS: NBR 5648","Pç.",null,null,null,null,null,null,null,null,null,null,null,null,null,null,null,null,0]
[8129,"LUVA SOLDÁVEL E COM ROSCA (LR) PVC 50MMX1 1/2\", NORMAS: NBR 5648","Pç",null,null,null,6,null,null,null,null,null,null,null,100,null,null,null,null,106]
[8130,"LUVA DE REDUÇÃO SOLDAVEL 60X50 MM, NORMAS: NBR 5648","Pç",null,null,10,20,null,null,null,null,50,null,null,100,null,null,null,null,{"$f":"SUM(D238:S238)","v":180}]
[8131,"LUVA DE REDUÇÃO SOLDAVEL 75X60 MM, NORMAS: NBR 5648","Pç",null,null,null,10,null,null,null,null,10,null,null,100,null,null,null,null,120]
[8132,"LUVA DE REDUÇÃO SOLDAVEL 85X60 MM, NORMAS: NBR 5648","Pç",null,null,null,null,null,null,null,null,10,null,null,20,null,null,null,null,30]
[8133,"LUVA DE REDUÇÃO SOLDAVEL 110X75 MM, NORMAS: NBR 5648","Pç.",null,null,null,10,null,null,null,null,null,null,null,null,null,null,null,null,10]
[8134,"TE 90º SOLDÁVEL PVC 20MM, NORMAS:  NBR 5648","Pç.",null,100,null,50,null,null,null,20,200,null,null,400,50,null,50,300,1170]
[8135,"TE 90º SOLDÁVEL PVC COM BUCHA LATÃO NA BOLSA CENTRAL 20MMX1/2”, NORMAS: NBR 5648","Pç.",null,50,null,null,null,null,null,null,null,null,null,100,null,null,null,null,150]
[8136,"TE 90º SOLDÁVEL PVC COM ROSCA NA BOLSA CENTRAL 20MMX1/2”, NORMAS: NBR 5648","Pç.",null,null,null,null,null,null,null,null,null,null,null,null,null,null,null,100,100]
[8137,"TE 90º REDUÇÃO SOLDÁVEL PVC 25 MMX 20MM, NORMAS:  NBR 5648","Pç.",null,null,null,null,null,null,null,null,null,null,null,100,40,50,null,100,290]
[8138,"TE 90º SOLDÁVEL PVC 25MM, NORMAS:  NBR 5648","Pç.",250,50,null,25,15,null,50,20,50,null,null,200,20,50,null,200,930]
[8139,"TE 90º SOLDÁVEL PVC COM BUCHA LATÃO NA BOLSA CENTRAL 25MMX3/4”, NORMAS: NBR 5648","Pç.",null,50,null,null,null,null,null,null,null,null,null,null,null,null,null,null,50]
[8140,"TE 90º SOLDÁVEL PVC COM ROSCA NA BOLSA CENTRAL 25MMX1/2”, NORMAS: NBR 5648","Pç.",null,null,null,null,null,null,null,null,null,null,null,100,null,50,null,100,250]
[8141,"TE 90º SOLDÁVEL PVC COM ROSCA NA BOLSA CENTRAL 25MMX3/4”, NORMAS: NBR 5648","Pç.",null,null,null,null,null,null,null,null,null,null,null,null,null,null,null,50,50]
[8142,"TE 90º REDUÇÃO SOLDÁVEL PVC 32 MMX 25MM, NORMAS:  NBR 5648","Pç.",null,null,null,null,null,null,null,null,null,null,null,100,null,50,null,100,250]
[8143,"TE 90º SOLDÁVEL PVC 32MM, NORMAS:  NBR 5648","Pç.",null,50,null,25,null,null,30,20,50,null,null,200,10,50,10,200,645]
[8144,"TE 90º SOLDÁVEL PVC COM ROSCA NA BOLSA CENTRAL 32MMX3/4”, NORMAS: NBR 5648","Pç.",null,null,null,null,null,null,null,null,null,null,null,null,null,null,null,50,50]
[8145,"TE 90º REDUÇÃO SOLDÁVEL PVC 40 MMX 25MM, NORMAS:  NBR 5648","PÇ",null,null,null,null,null,null,null,null,null,null,null,null,null,null,null,100,100]
[8146,"TE 90º REDUÇÃO SOLDÁVEL PVC 40 MMX 32MM, NORMAS:  NBR 5648","Pç.",null,null,null,null,null,null,null,null,null,null,null,null,null,null,null,100,100]
[8147,"TE 90º SOLDÁVEL PVC 40MM, NORMAS:  NBR 5648","Pç.",null,20,null,null,null,null,null,null,null,null,null,null,null,null,null,150,170]
[8148,"TE 90º REDUÇÃO SOLDÁVEL PVC 50 MMX 20MM, NORMAS:  NBR 5648","Pç.",null,null,null,null,null,null,null,null,null,null,null,50,null,null,null,100,150]
[8149,"TE 90º REDUÇÃO SOLDÁVEL PVC 50 MMX 25MM, NORMAS:  NBR 5648","Pç.",null,null,null,null,null,null,null,null,null,null,null,null,null,null,null,100,100]
[8150,"TE 90º REDUÇÃO SOLDÁVEL PVC 50 MMX 32MM, NORMAS:  NBR 5648","Pç.",null,null,null,null,null,null,null,null,null,null,null,null,null,null,null,100,100]
[8151,"TE 90º REDUÇÃO SOLDÁVEL PVC 50 MMX 40MM, NORMAS:  NBR 5648","Pç.",null,null,null,null,null,null,null,null,null,null,null,null,null,null,null,50,50]
[8152,"TE 90º REDUÇÃO SOLDÁVEL PVC 60 MMX 25MM, NORMAS:  NBR 5648","Pç.",null,null,null,null,null,null,null,null,null,null,null,100,null,null,null,10,110]
[8153,"TE 90º REDUÇÃO SOLDÁVEL PVC 60 MMX 50MM, NORMAS:  NBR 5648","Pç.",null,null,null,null,null,null,null,null,5,null,null,null,null,null,null,10,15]
[8154,"TE 90º SOLDÁVEL PVC 50MM, NORMAS:  NBR 5648","Pç.",null,null,null,10,null,null,15,null,100,null,null,200,10,null,null,100,435]
[8155,"TE 90º SOLDÁVEL PVC 60MM, NORMAS:  NBR 5648","Pç.",null,300,null,10,null,null,null,null,5,null,4,200,10,50,10,100,689]
[8156,"TE 90º REDUÇÃO SOLDÁVEL PVC 85 MMX 60MM, NORMAS:  NBR 5648","Pç.",null,null,null,null,null,10,null,null,null,null,null,null,null,null,null,null,10]
[8157,"TE 90º SOLDÁVEL PVC 75MM, NORMAS:  NBR 5648","Pç.",null,60,null,null,null,null,null,null,null,null,null,100,null,null,null,null,160]
[8158,"TE 90º SOLDÁVEL PVC 85MM, NORMAS:  NBR 5648","Pç.",null,30,null,null,null,10,null,null,null,null,null,100,null,null,null,null,140]
[8159,"TE 90º REDUÇÃO SOLDÁVEL PVC 110 MMX 60MM, NORMAS:  NBR 5648","Pç.",null,null,null,null,null,null,null,null,null,null,null,20,null,null,null,null,20]
[8160,"TE 90º SOLDÁVEL PVC 110MM, NORMAS:  NBR 5648","Pç.",20,50,null,null,null,null,null,null,null,null,null,100,null,null,null,null,170]
[8161,"UNIÃO SOLDÁVEL PVC 20MM, NORMAS: NBR 5648","Pç.",null,null,null,null,null,null,null,null,null,null,null,null,null,20,null,null,20]
[8162,"UNIÃO SOLDÁVEL PVC 25MM, NORMAS: NBR 5648","Pç.",null,null,null,null,null,null,null,null,null,null,null,null,null,20,null,null,{"$f":"SUM(D270:S270)","v":20}]
[8163,"UNIÃO SOLDÁVEL PVC 40MM, NORMAS: NBR 5648","Pç.",null,null,null,null,null,null,null,null,null,null,null,null,null,10,null,null,10]
[8164,"UNIÃO SOLDÁVEL PVC 50MM, NORMAS: NBR 5648","Pç.",null,null,null,null,null,null,null,null,null,null,null,20,null,null,null,null,20]
[8165,"UNIÃO SOLDÁVEL PVC 60MM, NORMAS: NBR 5648","Pç.",null,null,5,null,null,null,null,null,null,null,null,20,5,10,null,null,40]
[]
[]
[null,"LOTE 09: REGISTROS EM PVC"]
["9.1","REGISTRO DE ESFERA EM PVC ROSCÁVEL 1/2MM, NORMAS: NBR 5626","Pç.",200,200,null,null,null,null,null,null,null,null,null,null,null,null,100,null,{"$f":"SUM(D277:S277)","v":500}]
["9.2","REGISTRO DE ESFERA COM BORBOLETA EM PVC 1/2, NORMAS: NBR 11306","Pç.",200,500,null,null,null,null,100,null,20,null,null,500,null,600,null,null,1920]
["9.3","REGISTRO DE ESFERA ROSCA FÊMEA COM BORBOLETA EM PVC 1/2","Pç.",null,500,20,null,null,null,20,null,null,null,null,null,null,null,null,null,540]
["9.4","REGISTRO DE ESFERA EM PVC ROSCÁVEL 3/4, NORMAS: NBR 5626","Pç.",null,null,null,null,null,null,50,null,null,null,null,null,null,50,null,null,100]
["9.5","REGISTRO DE ESFERA COM BORBOLETA EM PVC 3/4, NORMAS: NBR 11306","Pç.",null,200,null,null,null,null,50,null,null,null,null,500,null,null,null,250,1000]
["9.6","REGISTRO DE ESFERA ROSCA FÊMEA COM BORBOLETA EM PVC 3/4","Pç.",null,50,null,null,null,null,20,null,null,null,null,null,null,null,null,null,70]
["9.7","REGISTRO DE ESFERA EM PVC ROSCÁVEL 1”, NORMAS: NBR 5626","Pç.",null,null,null,null,null,null,15,null,null,null,null,100,null,null,null,250,365]
["09.8","REGISTRO DE ESFERA COM BORBOLETA EM PVC 1”, NORMAS: NBR 11306","Pç.",null,50,5,null,null,null,null,null,null,null,null,null,null,20,null,null,75]
["09.9","REGISTRO DE ESFERA EM PVC ROSCÁVEL 1 1/4, NORMAS: NBR 5626","Pç.",null,null,null,null,null,null,null,null,null,null,null,null,null,null,null,150,150]
["09.10","REGISTRO DE ESFERA EM PVC ROSCÁVEL 1 1/2, NORMAS: NBR 5626","Pç.",null,null,null,null,null,null,null,null,null,null,null,50,null,null,null,150,200]
["09.11","REGISTRO DE ESFERA EM PVC ROSCÁVEL 2” NORMAS: NBR 5626","Pç.",null,20,null,null,null,null,null,null,null,null,null,50,null,null,null,200,270]
["09.12","REGISTRO DE ESFERA COM BORBOLETA EM PVC 2”, NORMAS: NBR 11306","Pç.",null,null,null,null,null,null,null,null,null,null,null,null,null,null,null,50,50]
["09.13","REGISTRO DE ESFERA EM PVC SOLDÁVEL 20MM, NORMAS: NBR 5626","Pç.",350,null,null,100,null,null,1000,null,10,null,null,null,500,100,50,null,2110]
["09.14","REGISTRO DE ESFERA  E UNIÃO EM PVC SOLDÁVEL 20MM, NORMAS: NBR 5626","Pç",null,null,20,null,null,null,null,100,5,null,null,null,null,null,null,null,125]
["09.15","REGISTRO DE ESFERA EM PVC SOLDÁVEL 25MM, NORMAS: NBR 5626","Pç.",200,null,5,25,null,null,30,20,20,null,null,null,10,50,5,null,365]
["09.16","REGISTRO DE ESFERA EM PVC SOLDÁVEL 32MM, NORMAS: NBR 5626","Pç.",100,null,5,25,5,null,60,null,20,null,null,null,10,20,null,null,245]
["09.17","REGISTRO DE ESFERA EM PVC SOLDÁVEL 40MM, NORMAS: NBR 5626","Pç.",null,null,null,null,null,null,5,null,20,null,null,null,null,null,null,null,25]
["09.18","REGISTRO DE ESFERA EM PVC SOLDÁVEL 50MM, NORMAS: NBR 5626","Pç.",null,null,null,null,null,null,15,null,20,null,null,null,10,null,null,null,45]
["09.19","REGISTRO DE ESFERA EM PVC SOLDÁVEL 60MM, NORMAS: NBR 5626","Pç.",50,null,null,null,null,null,15,10,20,null,6,null,null,20,10,null,131]
[]
[]
[null,"LOTE 10: TUBOS E CONEXÕES  EM PEAD"]
["10.1","TUBO EM POLIETILENO DE ALTA DENSIDADE(PEAD) PE-80, NA COR AZUL , DIAMETRO 20MM, PN-10, PRESSÃO DE ATÉ 1MPA (10 KGF/CM2 - 100 MCA), CONFORME NTS-048 ","MTS.",null,5000,null,null,null,null,null,null,100,null,null,2000,null,null,null,3000,{"$f":"SUM(D299:S299)","v":10100}]
["10.2","ADAPTADOR PARA PEAD EM PP-POLIPROPILENO DIÂMETRO 20MM X 1/2\", PN-10, CONFORME NBR-9798 ","Pç.",null,100,null,null,null,null,null,null,300,null,null,500,null,null,null,null,900]
["10.3","COTOVELO ADAPTADOR 90°PARA PEAD EM PP-POLIPROPILENO DIÂMETRO 20MM X 1/2\" RE PN-10, CONFORME NBR-9798 ","Pç.",null,300,null,null,null,null,null,null,null,null,null,500,null,null,null,null,800]
["10.4","COTOVELO ADAPTADOR 90°PARA PEAD EM PP-POLIPROPILENO DIÂMETRO 20MM X 1/2\" RI PN-10, CONFORME NBR-9798","Pç.",null,300,null,null,null,null,null,null,null,null,null,null,null,null,null,null,300]
["10.5","DERIVAÇÃO \"T\" PARA PEAD EM PP-POLIPROPILENO DIÂMETRO 20MM, CONFORME NBR-9798 ","Pç.",null,100,20,null,null,null,null,null,null,null,null,500,null,null,null,null,620]
["10.6","EXTREMIDADE(TUBETE, PORCA E ANEL) OITAVADA EM PP-POLIPROPILENO CURTA COM INSERTO METÁLICO DIÂMETRO 1/2\" CONFORME NBR 8194 ","Pç.",null,null,null,null,null,null,null,null,null,null,null,null,null,null,null,500,500]
["10.7","LUVA DE EMENDA EM PP-POLIPROPILENO PARA REPARO PEAD/PEAD DIAM. 20MM  X 20MM ","Pç.",null,400,null,null,null,null,null,null,100,null,null,100,null,null,null,null,600]
["10.8","LUVA DE EMENDA EM PP-POLIPROPILENO EM PP-POLIPROPILENO PARA REPARO PVC/PVC DIAM. 25MM  X 25MM ","Pç.",null,200,null,null,null,null,null,null,null,null,null,null,null,null,null,null,200]
["10.9","TUBETE MACIÇO EM PP 1/2\", PARA SUPRESSÃO DE LIGAÇÃO","Pç.",null,null,10,null,null,null,null,null,null,null,null,200,null,null,null,null,210]
["10.10","UNIÃO PARA PEAD EM PP DIAM. 20MM PN-10 CONFORME NBR-9798 ","Pç.",null,100,null,null,null,null,null,null,50,null,null,null,null,null,null,null,150]
[]
[]
[null,"LOTE 11: CONEXÕES PVC ROSCÁVEIS"]
["11.1","ADAPTADOR EM PVC ROSCÁVEL COM ANEL 1/2\" PARA CAIXA D´ÁGUA","Pç.",null,20,null,null,null,null,null,null,null,null,null,null,null,null,null,30,{"$f":"SUM(D312:S312)","v":50}]
["11.2","ADAPTADOR EM PVC ROSCÁVEL COM ANEL 3/4\" PARA CAIXA D´ÁGUA","Pç.",null,20,null,null,null,null,null,null,null,null,null,null,null,null,null,30,50]
["11.3","ADAPTADOR EM PVC ROSCÁVEL COM ANEL 1\" PARA CAIXA D´ÁGUA","Pç.",null,null,null,null,null,null,null,null,null,null,null,null,null,null,null,30,30]
["11.4","ADAPTADOR EM PVC ROSCÁVEL COM ANEL 2\" PARA CAIXA D´ÁGUA","Pç.",null,20,null,null,null,null,null,null,null,null,null,30,null,null,null,20,70]
["11.5","BUCHA EM PVC REDUÇÃO ROSCÁVEL CURTA PVC DE 3/4”X1/2 “, NORMAS: NBR 5648","Pç.",null,200,null,null,null,null,null,null,100,null,null,1000,100,null,null,null,1400]
["11.6","BUCHA EM PVC REDUÇÃO ROSCÁVEL CURTA PVC DE 1 1/2”X 1 “, NORMAS: NBR 5648","Pç.",null,null,null,null,null,null,null,null,null,null,null,50,null,null,null,null,50]
["11.7","BUCHA EM PVC REDUÇÃO ROSCÁVEL CURTA PVC DE 1 1/2”X3/4 “, NORMAS: NBR 5648","Pç.",null,50,null,null,null,null,null,null,null,null,null,null,null,null,null,null,50]
["11.8","BUCHA EM PVC REDUÇÃO ROSCÁVEL CURTA PVC DE 1”X1/2 “, NORMAS: NBR 5648","Pç.",null,null,null,null,null,null,15,null,null,null,null,null,null,null,null,null,15]
["11.9","BUCHA EM PVC REDUÇÃO ROSCÁVEL CURTA PVC DE 1”X3/4 “, NORMAS: NBR 5648","Pç.",null,60,10,null,null,null,15,null,null,null,null,50,null,null,null,null,135]
["11.10","BUCHA EM PVC REDUÇÃO ROSCÁVEL CURTA PVC DE 2”X1 “, NORMAS: NBR 5648","Pç.",null,50,null,null,null,null,null,null,null,null,null,null,null,null,null,null,50]
["11.11","CAP EM PVC ROSCÁVEL DE 1/2”, NORMAS:  NBR 5648","Pç.",null,600,null,null,null,null,null,null,200,null,null,100,null,50,50,700,1700]
["11.12","CAP EM PVC ROSCÁVEL DE 3/4”, NORMAS: NBR 5648","Pç.",null,300,null,null,null,null,null,null,50,null,null,100,null,null,null,400,850]
["11.13","CAP EM PVC ROSCÁVEL DE 1”, NORMAS:  NBR 5648","Pç.",null,100,null,null,null,null,null,null,50,null,null,50,null,null,null,300,500]
["11.14","CAP EM PVC ROSCÁVEL DE 1 1/4”, NORMAS: NBR 5648","Pç.",null,200,null,null,null,null,null,null,10,null,null,null,null,null,null,200,410]
["11.15","CAP EM PVC ROSCÁVEL DE 1 1/2”, NORMAS: NBR 5648","Pç.",null,null,null,null,null,null,null,null,10,null,null,null,null,null,null,200,210]
["11.16","CAP EM PVC ROSCÁVEL DE 2”, NORMAS: - NBR 5648","Pç.",null,50,null,null,null,null,null,null,10,null,null,null,null,null,null,300,360]
["11.17","CAP EM PVC ROSCÁVEL DE 2 1/2”, NORMAS: NBR 5648","Pç.",null,null,null,null,null,null,null,null,10,null,null,null,null,null,null,100,110]
["11.18","CAP EM PVC ROSCÁVEL DE 3”, NORMAS: NBR 5648","Pç.",null,null,null,null,null,null,null,null,null,null,null,null,null,null,null,100,100]
["11.19","CAP EM PVC ROSCÁVEL DE 4”, NORMAS: NBR 5648","Pç.",null,10,null,null,null,null,null,null,null,null,null,null,null,null,null,50,60]
["11.20","CURVA 90° EM PVC ROSCÁVEL DE 1/2”, NORMAS: NBR 5648","Pç.",null,100,null,null,null,null,null,null,null,null,null,null,null,null,null,null,100]
["11.21","CURVA 90° EM PVC ROSCÁVEL DE 3/4”, NORMAS: NBR 5648","Pç.",null,50,null,null,null,null,null,null,null,null,null,null,null,null,null,null,50]
["11.22","CURVA 90° EM PVC ROSCÁVEL DE 1”, NORMAS: NBR 5648","Pç.",null,20,null,null,null,null,null,null,null,null,null,null,null,null,null,null,20]
["11.23","CURVA 90°EM PVC ROSCÁVEL DE 2”, NORMAS: - NBR 5648","Pç.",null,10,null,null,null,null,null,null,null,null,null,null,null,null,null,null,10]
["11.24","JOELHO 90º EM PVC ROSCÁVEL DE 1/2”, NORMAS:  NBR 5648","Pç.",null,600,null,null,null,null,50,null,null,null,null,1000,null,400,200,null,2250]
["11.25","JOELHO 90º EM PVC ROSCÁVEL DE 3/4”, NORMAS: NBR 5648","Pç.",null,200,null,null,null,null,null,null,null,null,null,1000,null,null,null,700,1900]
["11.26","JOELHO DE REDUÇÃO 90° EM PVC 3/4”X 1/2\", NORMAS: NBR 5648","Pç.",null,null,50,null,null,null,null,null,null,null,null,200,null,null,null,700,950]
["11.27","JOELHO 90º  EM PVC ROSCÁVEL DE 1”, NORMAS:  NBR 5648","Pç.",null,60,null,null,null,null,null,null,null,null,null,500,null,null,null,200,760]
["11.28","JOELHO 90º  EM PVC ROSCÁVEL DE 1 1/2”, NORMAS: NBR 5648","Pç.",null,null,null,null,null,null,null,null,null,null,null,50,null,null,null,150,200]
["11.29","JOELHO DE REDUÇÃO90°   EM PVC 1” X 3/4”, NORMAS: NBR 5648","Pç.",null,null,null,null,null,null,null,null,null,null,null,null,null,null,null,20,20]
["11.30","JOELHO 90º  EM PVC ROSCÁVEL DE 2”, NORMAS: - NBR 5648","Pç.",null,null,null,null,null,null,null,null,null,null,null,50,null,null,null,200,250]
["11.31","JOELHO 90º  EM PVC ROSCÁVEL DE 2 1/2”, NORMAS: NBR 5648","Pç.",null,null,null,null,null,null,null,null,null,null,null,null,null,null,null,100,100]
["11.32","LUVA DE CORRER EM PVC PARA TUBO ROSCÁVEL DE 1/2”, NORMAS:  NBR 5648","Pç.",null,100,null,null,null,null,null,null,null,null,null,50,null,null,null,700,850]
["11.33","LUVA EM PVC ROSCÁVEL DE 1/2”, NORMAS:  NBR 5648","Pç.",null,200,50,null,null,null,null,null,null,null,null,1000,null,400,200,null,{"$f":"SUM(D344:S344)","v":1850}]
["11.34","LUVA DE CORRER EM PVC PARA TUBO ROSCÁVEL DE 3/4”, NORMAS: NBR 5648","Pç.",null,100,null,null,null,null,null,null,null,null,null,50,null,null,null,400,550]
["11.35","LUVA DE REDUÇÃO EM PVC 3/4”X 1/2\", NORMAS: NBR 5648","Pç.",null,null,null,null,null,null,30,null,null,null,null,50,null,null,null,null,80]
["11.36","LUVA EM PVC ROSCÁVEL DE 3/4”, NORMAS: NBR 5648","Pç.",null,200,50,null,null,null,null,null,null,null,null,1000,null,null,null,500,1750]
["11.37","LUVA DE CORRER EM PVC PARA TUBO ROSCÁVEL DE 1”, NORMAS:  NBR 5648","Pç.",null,20,null,null,null,null,null,null,null,null,null,null,null,null,null,150,170]
["11.38","LUVA DE REDUÇÃO EM PVC 1” X 3/4”, NORMAS: NBR 5648","Pç.",null,null,5,null,null,null,null,null,null,null,null,null,null,null,null,null,5]
["11.39","LUVA EM PVC ROSCÁVEL DE 1”, NORMAS:  NBR 5648","Pç.",null,100,null,null,null,null,null,null,null,null,null,200,null,null,null,200,500]
["11.40","LUVA EM PVC ROSCÁVEL DE 1 1/4”, NORMAS: NBR 5648","Pç.",null,null,null,null,null,null,null,null,null,null,null,null,null,null,null,200,200]
["11.41","LUVA EM PVC ROSCÁVEL DE 1 1/2”, NORMAS: NBR 5648","Pç.",null,null,null,null,null,null,null,null,null,null,null,null,null,null,null,100,100]
["11.42","LUVA EM PVC ROSCÁVEL DE 2”, NORMAS: - NBR 5648","Pç.",null,50,null,null,null,null,null,null,null,null,null,null,null,10,null,200,260]
["11.43","LUVA EM PVC ROSCÁVEL DE 2 1/2”, NORMAS: NBR 5648","Pç.",null,null,null,null,null,null,null,null,null,null,null,null,null,null,null,150,150]
["11.44","LUVA EM PVC ROSCÁVEL DE 4”, NORMAS: NBR 5648","Pç.",null,10,null,null,null,null,null,null,null,null,null,null,null,null,null,null,10]
["11.45","NIPEL EM PVC ROSCÁVEL DE 1/2”, NORMAS:  NBR 5648","Pç.",null,300,null,null,null,null,null,null,50,null,null,500,null,50,30,null,930]
["11.46","NIPEL EM PVC ROSCÁVEL DE 3/4”, NORMAS: NBR 5648","Pç.",null,100,null,null,null,null,null,null,20,null,null,500,null,null,null,700,1320]
["11.47","NIPEL EM PVC ROSCÁVEL DE 1”, NORMAS:  NBR 5648","Pç.",null,30,10,null,null,null,null,null,20,null,null,500,null,50,null,300,910]
["11.48","NIPEL EM PVC ROSCÁVEL DE 1 1/4”, NORMAS: NBR 5648","Pç.",null,null,null,null,null,null,null,null,null,null,null,null,null,null,null,100,100]
["11.49","NIPEL EM PVC ROSCÁVEL DE 1 1/2”, NORMAS: NBR 5648","Pç.",null,null,null,null,null,null,null,null,null,null,null,50,null,null,null,150,200]
["11.50","NIPEL EM PVC ROSCÁVEL DE 2”, NORMAS: - NBR 5648","Pç.",null,20,null,null,null,null,null,null,null,null,null,50,null,null,null,150,220]
["11.51","NIPEL EM PVC ROSCÁVEL DE 2 1/2”, NORMAS: NBR 5648","Pç.",null,null,null,null,null,null,null,null,null,null,null,null,null,null,null,150,150]
["11.52","NIPEL EM PVC ROSCÁVEL DE 3”, NORMAS: NBR 5648","Pç.",null,null,null,null,null,null,null,null,null,null,null,null,null,null,null,100,100]
["11.53","PLUG EM PVC ROSCÁVEL DE 1/2”, NORMAS:  NBR 5648","Pç.",null,50,null,null,null,null,20,null,null,null,null,null,null,null,80,100,250]
["11.54","PLUG EM PVC ROSCÁVEL DE 3/4”, NORMAS: NBR 5648","Pç.",null,300,null,null,null,null,null,null,300,null,null,null,null,null,null,100,700]
["11.55","PLUG EM PVC ROSCÁVEL DE 1”, NORMAS:  NBR 5648","Pç.",null,50,null,null,null,null,null,null,null,null,null,null,null,null,null,null,50]
["11.56","PLUG EM PVC ROSCÁVEL DE 2”, NORMAS: - NBR 5648","Pç.",null,10,null,null,null,null,null,null,null,null,null,null,null,null,null,null,10]
["11.57","TÊ EM PVC ROSCÁVEL DE 1/2”, NORMAS:  NBR 5648","Pç.",null,50,null,null,null,null,null,null,null,null,null,500,null,null,null,500,1050]
["11.58","TÊ EM PVC ROSCÁVEL DE 3/4”, NORMAS: NBR 5648","Pç.",null,50,null,null,null,null,null,null,null,null,null,500,null,null,null,300,850]
["11.59","TÊ EM PVC ROSCÁVEL DE 1”, NORMAS:  NBR 5648","Pç.",null,50,null,null,null,null,null,null,null,null,null,500,null,null,null,150,700]
["11.60","TÊ EM PVC ROSCÁVEL DE 1 1/2”, NORMAS: NBR 5648","Pç.",null,null,null,null,null,null,null,null,null,null,null,50,null,null,null,150,200]
["11.61","TÊ EM PVC ROSCÁVEL DE 2”, NORMAS: - NBR 5648","Pç.",null,30,null,null,null,null,null,null,null,null,null,50,null,null,null,100,180]
["11.62","UNIÃO EM PVC ROSCÁVEL DE 1/2”, NORMAS:  NBR 5648","Pç.",null,100,null,null,null,null,null,null,null,null,null,200,null,null,100,800,1200]
["11.63","UNIÃO EM PVC ROSCÁVEL DE 3/4”, NORMAS: NBR 5648","Pç.",null,50,null,null,null,null,null,null,null,null,null,200,null,null,null,400,650]
["11.64","UNIÃO EM PVC ROSCÁVEL DE 1”, NORMAS:  NBR 5648","Pç.",null,null,null,null,null,null,null,null,null,null,null,200,null,null,null,200,400]
["11.65","UNIÃO EM PVC ROSCÁVEL DE 1 1/4”, NORMAS: NBR 5648","Pç.",null,null,null,null,null,null,null,null,null,null,null,null,null,null,null,50,{"$f":"SUM(D376:S376)","v":50}]
["11.66","UNIÃO EM PVC ROSCÁVEL DE 1 1/2”, NORMAS: NBR 5648","Pç.",null,null,null,null,null,null,null,null,null,null,null,50,null,null,null,50,100]
["11.67","UNIÃO EM PVC ROSCÁVEL DE 2”, NORMAS: - NBR 5648","Pç.",null,null,null,null,null,null,null,null,null,null,null,50,null,null,null,50,100]
[]
[]
[null,"LOTE 12: TUBOS EM PVC COLETORES ESGOTO OCRE"]
["12.1","TUBO PVC LISO ESGOTO OCRE JEI/JERI 100MM X 6 METROS, C/ANEL DE BORRACHA, NORMAS: - NBR 7362-1","Tubo",100,null,5,null,null,null,30,null,null,null,10,null,50,null,null,800,{"$f":"SUM(D382:S382)","v":995}]
["12.2","TUBO PVC LISO ESGOTO OCRE JEI/JERI 150MM X 6 METROS, C/ANEL DE BORRACHA, NORMAS: - NBR 7362-1","Tubo",800,700,null,100,null,null,30,null,20,40,50,null,150,40,300,1000,{"$f":"SUM(D383:S383)","v":3230}]
["12.3","TUBO PVC LISO ESGOTO OCRE JEI/JERI 200MM X 6 METROS, C/ANEL DE BORRACHA, NORMAS: - NBR 7362-1","Tubo",650,10,null,100,null,15,null,null,20,null,10,null,null,300,null,1000,{"$f":"SUM(D384:S384)","v":2105}]
["12.4","TUBO PVC LISO ESGOTO OCRE JEI/JERI 250MM X 6 METROS, C/ANEL DE BORRACHA, NORMAS: - NBR 7362-1","Tubo",60,null,null,30,null,null,null,null,null,null,5,null,null,null,null,200,{"$f":"SUM(D385:S385)","v":295}]
["12.5","TUBO PVC LISO ESGOTO OCRE JEI/JERI 300MM X 6 METROS, C/ANEL DE BORRACHA, NORMAS: - NBR 7362-1","Tubo",null,null,null,30,null,null,null,null,null,null,null,null,null,null,null,100,{"$f":"SUM(D386:S386)","v":130}]
[]
[]
[null,"LOTE 13: TUBOS EM PVC ESGOTO  PRIMÁRIO(BRANCO)"]
["13.1","TUBO PVC PONTA/BOLSA JE ESGOTO PRIMÁRIO DN 40MM X 06 METROS, C/ANEL DE BORRACHA, NORMAS:  NBR 5688","Tubo",null,120,null,null,null,null,20,50,50,null,null,null,null,null,null,200,{"$f":"SUM(D390:S390)","v":440}]
["13.2","TUBO PVC PONTA/BOLSA JE ESGOTO PRIMÁRIO DN 50MM X 06 METROS, C/ANEL DE BORRACHA, NORMAS: NBR 5688","Tubo",null,20,null,null,null,null,30,50,50,null,null,null,null,null,null,200,350]
["13.3","TUBO PVC PONTA/BOLSA JE ESGOTO PRIMÁRIO DN 75MM X 06 METROS, C/ANEL DE BORRACHA, NORMAS: NBR 5688","Tubo",null,null,null,null,null,null,null,null,50,10,null,null,null,null,null,200,260]
["13.4","TUBO PVC PONTA/BOLSA JE ESGOTO PRIMARIO DN100 X 06 METROS, C/ANEL DE BORRACHA, NORMAS: NBR 5688","Tubo",400,800,20,200,null,100,50,150,200,50,50,1000,100,200,200,1000,4520]
["13.5","TUBO PVC PONTA/BOLSA JE ESGOTO PRIMÁRIO DN150MM X 06 METROS, C/ANEL DE BORRACHA, NORMAS: NBR 5688","Tubo",null,10,5,null,null,null,20,null,200,null,null,1000,50,100,null,100,1485]
["13.6","TUBO PVC PONTA/BOLSA JE ESGOTO PRIMÁRIO DN 200MM X 06 METROS, C/ANEL DE BORRACHA, NORMAS: NBR 5688","Tubo",null,null,null,null,null,null,null,null,null,null,null,null,20,null,null,50,70]
[]
[]
[null,"LOTE 14: CONEXÕES EM PVC ESGOTO PRIMÁRIO(BRANCO)"]
["14.1","ADAPTADOR PVC BOLSA ELÁSTICA ESGOTO PRIMÁRIO 100MMX PONTA COLETOR ESGOTO OCRE 110MM, NORMAS: NBR 5688","Pç.",350,100,20,null,null,null,null,null,null,20,10,null,100,null,null,500,{"$f":"SUM(D399:S399)","v":1100}]
["14.2","ADAPTADOR PVC BOLSA ELÁSTICA ESGOTO PRIMÁRIO 150MMX PONTA COLETOR ESGOTO OCRE 110MM, NORMAS: NBR 5688","Pç.",null,null,null,null,null,null,null,null,null,10,null,null,50,null,null,100,160]
["14.3","BUCHA PVC DE REDUÇÃO LONGA ESGOTO PRIMÁRIO SÉRIE NORMAL 50MM X 40MM, NORMAS: NBR 5688","Pç.",null,null,null,null,null,null,null,null,100,null,null,null,null,null,null,null,100]
["14.4","CAP PVC ESGOTO PRIMÁRIO SÉRIE NORMAL 40MM, COM ANÉIS, NORMAS: NBR 5688","Pç.",null,null,null,null,null,null,null,null,null,null,null,null,null,null,null,50,50]
["14.5","CAP PVC ESGOTO PRIMÁRIO SÉRIE NORMAL 50MM, COM ANÉIS, NORMAS: NBR 5688","Pç.",null,null,null,null,null,null,null,null,null,null,null,null,null,null,null,50,50]
["14.6","CAP PVC ESGOTO PRIMÁRIO SÉRIE NORMAL 75MM, COM ANÉIS, NORMAS: NBR 5688","Pç.",null,null,null,null,null,null,null,null,null,10,null,null,null,null,null,50,60]
["14.7","CAP PVC ESGOTO PRIMÁRIO SÉRIE NORMAL 100MM, COM ANÉIS, NORMAS: NBR5688","Pç.",60,100,null,null,null,null,null,null,50,10,10,200,50,null,null,200,680]
["14.8","CAP PVC ESGOTO PRIMÁRIO SÉRIE NORMAL 150MM, COM ANÉIS,  NORMAS:NBR5688","Pç.",null,null,null,null,null,null,null,null,20,5,null,200,30,null,null,50,305]
["14.9","CAP PVC ESGOTO PRIMÁRIO SÉRIE NORMAL 200MM, COM ANÉIS, NORMAS: NBR5688","Pç.",null,null,null,null,null,null,null,null,null,5,null,null,5,null,null,null,10]
["14.10","CURVA CURTA  90° PVC ESGOTO PRIMÁRIO SÉRIE NORMAL 40MM, COM ANÉIS, NORMAS: NBR 5688","Pç.",null,50,null,null,null,null,null,null,5,null,null,null,null,null,null,null,55]
["14.11","CURVA LONGA 90° PVC ESGOTO PRIMÁRIO SÉRIE NORMAL 40MM, COM ANÉIS, NORMAS: NBR 5688","Pç.",null,100,null,null,null,null,null,null,5,null,null,null,null,null,null,null,105]
["14.12","CURVA CURTA 90° PVC ESGOTO PRIMÁRIO SÉRIE NORMAL DN 50MM, COM ANÉIS, NORMAS: NBR 5688","Pç.",null,null,null,null,null,null,10,null,null,null,null,null,null,null,null,null,10]
["14.13","CURVA CURTA 45° PVC ESGOTO PRIMÁRIO SÉRIE NORMAL DN 100MM, COM ANÉIS,  NORMAS: NBR 5688","Pç.",30,null,null,20,null,null,null,null,5,null,null,300,null,null,null,300,{"$f":"SUM(D411:S411)","v":655}]
["14.14","CURVA CURTA 90° PVC ESGOTO PRIMÁRIO SÉRIE NORMAL DN 100MM, COM ANÉIS, NORMAS: NBR 5688","Pç.",150,500,null,50,40,null,15,null,5,null,20,300,20,100,null,700,1900]
["14.15","CURVA LONGA 45° PVC ESGOTO PRIMÁRIO SÉRIE NORMAL DN 100MM, COM ANÉIS,  NORMAS: NBR 5688","Pç.",80,50,null,null,40,null,null,null,5,null,null,300,null,null,null,null,475]
["14.16","CURVA LONGA 90° PVC ESGOTO PRIMÁRIO SÉRIE NORMAL DN 100MM, COM ANÉIS,  NORMAS: NBR 5688","Pç.",120,null,null,null,null,null,null,null,5,null,null,300,10,null,null,null,435]
["14.17","CURVA LONGA 45° PVC ESGOTO PRIMÁRIO SÉRIE NORMAL DN 150MM, COM ANÉIS,  NORMAS: NBR 5688","Pç.",null,null,null,10,null,null,null,null,5,null,null,300,null,null,null,null,315]
["14.18","CURVA LONGA 90° PVC ESGOTO PRIMÁRIO SÉRIE NORMAL DN 150MM, COM ANÉIS,  NORMAS: NBR 5688","Pç.",null,null,null,null,15,null,null,null,5,null,null,300,null,null,null,null,320]
["14.19","CURVA LONGA 45° PVC ESGOTO PRIMÁRIO SÉRIE NORMAL DN 200MM, COM ANÉIS,  NORMAS: NBR 5688","Pç.",null,null,null,6,null,null,null,null,3,null,null,null,null,null,null,null,9]
["14.20","CURVA LONGA 90° PVC ESGOTO PRIMÁRIO SÉRIE NORMAL 200MM, COM ANÉIS, NORMAS: NBR 5688","Pç.",null,null,null,null,10,null,null,null,3,null,null,null,null,null,null,null,13]
["14.21","JOELHO 90° PVC ESGOTO PRIMÁRIO SÉRIE NORMAL 40MM, COM ANÉIS, NORMAS: NBR 5688","Pç.",null,150,null,null,null,null,null,null,100,null,null,null,null,null,100,null,350]
["14.22","JOELHO 90° PVC ESGOTO PRIMÁRIO SÉRIE NORMAL 50MM, COM ANÉIS, NORMAS: NBR 5688","Pç.",null,null,null,null,null,null,null,null,100,null,null,null,null,null,null,100,200]
["14.23","JOELHO 90° PVC ESGOTO PRIMÁRIO SÉRIE NORMAL 75MM, COM ANÉIS, NORMAS: NBR 5688","Pç.",null,null,null,null,null,null,null,null,100,10,null,null,null,null,null,100,210]
["14.24","JOELHO 45° PVC ESGOTO PRIMÁRIO SÉRIE NORMAL 100MM, COM ANÉIS, NORMAS: NBR 5688","Pç.",null,null,null,20,null,null,null,null,50,30,20,300,50,50,50,300,870]
["14.25","JOELHO 90° PVC ESGOTO PRIMÁRIO SÉRIE NORMAL DN 100MM, COM ANÉIS, NORMAS: NBR 5688","Pç.",250,400,null,null,null,null,20,null,200,30,20,300,100,100,null,800,2220]
["14.26","JOELHO 45° PVC ESGOTO PRIMÁRIO SÉRIE NORMAL 150MM, COM ANÉIS, NORMAS: NBR 5688","Pç.",null,null,null,10,null,null,null,null,50,null,null,300,20,null,null,null,380]
["14.27","JOELHO 90° PVC ESGOTO PRIMÁRIO SÉRIE NORMAL DN 150MM, COM ANÉIS, NORMAS: NBR 5688","Pç.",null,10,null,10,10,null,20,null,50,null,null,300,30,null,null,50,480]
["14.28","JOELHO 45° PVC ESGOTO PRIMÁRIO SÉRIE NORMAL 200MM, COM ANÉIS, NORMAS: NBR 5688","Pç.",null,null,null,10,null,null,null,null,null,null,null,null,null,50,null,null,60]
["14.29","JOELHO 90° PVC ESGOTO PRIMÁRIO SÉRIE NORMAL DN 200MM, COM ANÉIS, NORMAS: NBR 5688","Pç.",null,null,null,null,10,null,null,null,null,null,null,null,null,50,null,null,60]
["14.30","JUNÇÃO SIMPLES PVC, ESGOTO PRIMÁRIO SÉRIE NORMAL 100MMX100MM, COM ANÉIS, NORMAS: NBR 5688","Pç.",null,null,null,null,null,null,15,null,null,null,null,100,null,null,null,null,115]
["14.31","JUNÇÃO SIMPLES PVC, ESGOTO PRIMÁRIO SÉRIE NORMAL 150MMX100MM, COM ANÉIS, NORMAS: NBR 5688","Pç.",null,null,null,null,null,null,null,null,null,null,null,100,null,null,null,null,100]
["14.32","JUNÇÃO SIMPLES PVC, ESGOTO PRIMÁRIO SÉRIE NORMAL 150MMX150MM, COM ANÉIS, NORMAS: NBR 5688","Pç.",null,null,null,null,null,null,null,null,null,null,null,100,null,null,null,null,100]
["14.33","LUVA DE CORRER PVC ESGOTO PRIMÁRIO SÉRIE NORMAL 40MM, COM ANÉIS, NORMAS: NBR 5688","Pç.",null,100,null,null,null,null,null,null,null,null,null,null,null,null,null,null,100]
["14.34","LUVA SIMPLES PVC ESGOTO PRIMÁRIO SÉRIE NORMAL 40MM, COM ANÉIS, NORMAS: NBR 5688","Pç.",null,50,null,null,null,null,null,null,null,null,null,null,null,null,null,null,50]
["14.35","LUVA DE CORRER PVC ESGOTO PRIMÁRIO SÉRIE NORMAL 75MM, COM ANÉIS, NORMAS: NBR 5688","Pç.",null,null,null,null,null,null,null,null,null,10,null,null,null,null,null,null,10]
["14.36","LUVA DE CORRER PVC ESGOTO PRIMÁRIO SÉRIE NORMAL DN 100MM, COM ANÉIS,  NORMAS: NBR 5688","Pç.",250,400,null,null,null,null,null,null,100,null,10,100,50,null,200,100,1210]
["14.37","LUVA SIMPLES PVC ESGOTO PRIMÁRIO SÉRIE NORMAL DN 100MM, COM ANÉIS,  NORMAS: NBR 5688","Pç.",100,400,null,null,10,null,null,null,5,null,null,100,30,200,null,null,845]
["14.38","LUVA DE CORRER PVC ESGOTO PRIMÁRIO SÉRIE NORMAL DN 150MM, COM ANÉIS,  NORMAS: NBR 5688","Pç.",null,10,null,null,10,null,null,null,50,10,null,50,null,null,30,null,160]
["14.39","LUVA SIMPLES PVC ESGOTO PRIMÁRIO SÉRIE NORMAL DN 150MM, COM ANÉIS,  NORMAS: NBR 5688","Pç.",null,null,null,null,null,null,null,null,5,null,null,50,null,null,null,null,55]
["14.40","LUVA DE CORRER PVC ESGOTO PRIMÁRIO SÉRIE NORMAL 200MM, COM ANÉIS, NORMAS: NBR 5688","Pç.",null,null,null,null,5,null,null,null,null,5,null,null,null,null,null,null,10]
["14.41","LUVA SIMPLES PVC ESGOTO PRIMÁRIO SÉRIE NORMAL 200MM, COM ANÉIS, NORMAS: NBR 5688","Pç.",null,null,null,null,null,null,null,null,null,5,null,null,null,null,null,null,5]
["14.42","REDUÇÃO EXCÊNTRICA PVC, ESGOTO PRIMÁRIO SÉRIE NORMAL 100MMX50MM, COM ANÉIS, NORMAS: NBR 5688","Pç.",null,null,null,null,null,null,null,null,20,null,null,null,null,null,null,100,120]
["14.43","REDUÇÃO EXCÊNTRICA PVC, ESGOTO PRIMÁRIO SÉRIE NORMAL 100MMX75MM, COM ANÉIS, NORMAS: NBR 5688","Pç.",null,null,null,null,null,null,null,null,20,10,null,null,null,null,null,100,130]
["14.44","REDUÇÃO CONCÊNTRICA PVC, ESGOTO PRIMÁRIO SÉRIE NORMAL 150MMX100MM, COM ANÉIS, NORMAS: NBR 5688","Pç.",null,null,null,null,null,null,null,null,20,10,null,300,null,null,null,80,410]
["14.45","REDUÇÃO EXCÊNTRICA PVC, ESGOTO PRIMÁRIO SÉRIE NORMAL 150MMX100MM, COM ANÉIS, NORMAS: NBR 5688","Pç.",50,null,null,null,null,null,null,null,null,null,null,null,5,null,null,80,135]
["14.46","REDUÇÃO EXCÊNTRICA PVC, ESGOTO PRIMÁRIO SÉRIE NORMAL 200MMX150MM, COM ANÉIS, NORMAS: NBR 5688","Pç.",null,null,null,null,null,null,null,null,null,10,null,null,null,null,null,null,10]
["14.47","TÊ PVC, ESGOTO PRIMÁRIO SÉRIE NORMAL 50MMX50MM, COM ANÉIS, NORMAS: NBR 5688","Pç.",null,20,null,null,null,null,null,null,100,null,null,null,null,null,null,50,170]
["14.48","TÊ PVC ESGOTO PRIMÁRIO SÉRIE NORMAL 75MMX50MM, COM ANÉIS, NORMAS: NBR 5688","Pç.",null,null,null,null,null,null,null,null,50,null,null,null,null,null,null,50,100]
["14.49","TÊ PVC ESGOTO PRIMÁRIO SÉRIE NORMAL 75MMX75MM, COM ANÉIS, NORMAS: NBR 5688","Pç.",null,null,null,null,null,null,null,null,50,10,null,null,null,null,null,50,110]
["14.50","TÊ PVC ESGOTO PRIMÁRIO SÉRIE NORMAL 100MMX50MM, COM ANÉIS, NORMAS: NBR 5688","Pç.",null,null,null,null,null,null,null,null,50,null,null,null,null,null,null,50,100]
["14.51","TÊ PVC ESGOTO PRIMÁRIO SÉRIE NORMAL 100MMX75MM, COM ANÉIS, NORMAS: NBR 5688","Pç.",null,null,null,null,null,null,null,null,50,10,null,null,null,null,null,50,110]
["14.52","TÊ PVC, ESGOTO PRIMÁRIO SÉRIE NORMAL 100MMX100MM, COM ANÉIS, NORMAS: NBR 5688","Pç.",80,20,null,null,null,null,null,null,200,30,10,300,30,50,15,200,935]
["14.53","TÊ PVC ESGOTO PRIMÁRIO SÉRIE NORMAL 150MMX100MM, COM ANÉIS, NORMAS: NBR 5688","Pç.",null,null,null,null,null,null,null,null,20,10,null,300,10,null,null,null,340]
["14.54","TÊ PVC ESGOTO PRIMÁRIO SÉRIE NORMAL 150MMX150MM, COM ANÉIS, NORMAS: NBR 5688","Pç.",null,null,null,null,null,null,null,null,20,null,null,300,10,null,null,null,330]
["14.55","TÊ PVC CURTO REDUÇÃO ESGOTO PRIMÁRIO SÉRIE NORMAL 200MMX100MM, COM ANÉIS, NORMAS: NBR 5688","Pç.",null,null,null,null,null,null,null,null,null,5,null,null,null,null,null,null,5]
["14.56","TÊ PVC CURTO REDUÇÃO ESGOTO PRIMÁRIO SÉRIE NORMAL 200MMX150MM, COM ANÉIS, NORMAS: NBR 5688","Pç.",null,null,null,null,null,null,null,null,null,5,null,null,null,null,null,null,5]
["14.57","TÊ PVC ESGOTO PRIMÁRIO SÉRIE NORMAL 200MMX200MM, COM ANÉIS, NORMAS: NBR 5688","Pç.",null,null,null,null,null,null,null,null,null,5,null,null,2,null,null,null,7]
["14.58","VALVULA DE RETENÇÃO PVC ESGOTO PRIMÁRIO SÉRIE NORMAL DN 100MM, COM ANÉIS,  NORMAS: NBR 568","Pç.",30,200,null,null,null,null,null,null,50,null,null,null,null,null,null,50,330]
["14.59","VALVULA DE RETENÇÃO PVC ESGOTO PRIMÁRIO SÉRIE NORMAL DN 150MM, COM ANÉIS,  NORMAS: NBR 5688","Pç.",null,null,null,null,null,null,null,null,50,null,null,null,null,null,null,50,100]
[]
[]
[null,"LOTE 15: CONEXÕES EM PVC ESGOTO OCRE"]
["15.1","ADAPTADOR PVC PONTA COLETOR ESGOTO OCRE X BOLSA TUBO CERÂMICO 100MM, COM ANÉIS, NORMAS: NBR 7362-1","Pç.",null,null,null,null,null,null,null,null,null,20,null,null,null,null,null,300,{"$f":"SUM(D461:S461)","v":320}]
["15.2","ADAPTADOR PVC PONTA COLETOR ESGOTO OCREX BOLSA TUBO CERÂMICO 150MM, COM ANÉIS, NORMAS: NBR 7362-1","Pç.",null,200,null,null,null,null,null,null,null,20,null,null,null,null,null,600,820]
["15.3","ADAPTADOR PVC PONTA COLETOR ESGOTO OCREX BOLSA TUBO CERÂMICO 200MM, COM ANÉIS, NORMAS: NBR 7362-1","Pç.",null,null,null,null,null,null,null,null,null,10,null,null,null,null,null,200,210]
["15.4","ADAPTADOR PVC PONTA COLETOR ESGOTO OCREX BOLSA TUBO CERÂMICO 250MM, COM ANÉIS, NORMAS: NBR 7362-1","Pç.",null,null,null,null,null,null,null,null,null,null,null,null,5,null,null,100,105]
["15.5","ADAPTADOR PVC PONTA COLETOR ESGOTO OCREX BOLSA TUBO CERÂMICO 250MM, COM ANÉIS, NORMAS: NBR 7362-1","Pç.",null,null,null,null,null,null,null,null,null,null,null,null,null,null,null,50,50]
["15.6","CAP PVC COLETOR ESGOTO OCRE 100MM, COM ANÉIS, NORMAS: NBR 7362-1","Pç.",40,null,null,null,null,null,null,null,null,15,null,null,null,null,null,100,155]
["15.7","CAP PVC COLETOR ESGOTO OCRE 150MM, COM ANÉIS, NORMAS: NBR 7362-1","Pç.",120,20,null,null,null,null,null,null,null,10,null,null,null,null,6,100,256]
["15.8","CAP PVC COLETOR ESGOTO OCRE 200MM, COM ANÉIS, COM ANÉIS, NORMAS: NBR 7362-1","Pç.",50,null,null,null,null,null,null,null,null,10,null,null,null,null,null,null,60]
["15.9","CAP PVC COLETOR ESGOTO OCRE 250MM, COM ANÉIS, NORMAS: NBR 7362-1","Pç",15,null,null,null,null,null,null,null,null,null,null,null,null,null,null,100,115]
["15.10","CURVA CURTA PVC  90º COLETORA ESGOTO OCRE PONTA BOLSA 100MM, COM ANÉIS, NORMAS: NBR 7362-1","Pç",null,null,null,null,null,null,null,null,null,null,null,null,null,null,null,500,500]
["15.11","CURVA LONGA PVC 22º COLETORA ESGOTO OCRE PONTA BOLSA 100MM, COM ANÉIS, NORMAS: NBR 7362-1","Pç.",null,null,null,null,null,null,null,null,null,null,null,null,null,null,null,300,300]
["15.12","CURVA LONGA PVC 45º COLETORA ESGOTO OCRE PONTA BOLSA 100MM, COM ANÉIS, NORMAS: NBR 7362-1","Pç.",40,null,null,null,null,null,null,null,null,20,null,null,null,null,null,300,360]
["15.13","CURVA LONGA PVC 90º COLETORA ESGOTO OCRE PONTA BOLSA 100MM, COM ANÉIS, NORMAS: NBR 7362-1","Pç.",null,null,null,null,null,null,20,null,null,20,null,null,null,null,null,100,140]
["15.14","CURVA LONGA PVC 22º COLETORA ESGOTO OCRE PONTA BOLSA 150MM, COM ANÉIS, NORMAS: NBR 7362-1","Pç.",null,null,null,null,null,null,null,null,10,null,null,null,null,null,null,300,310]
["15.15","CURVA LONGA PVC 45º COLETORA ESGOTO OCRE PONTA BOLSA 150MM, COM ANÉIS, NORMAS: NBR 7362-1","Pç.",null,30,null,4,null,null,null,null,10,10,null,null,null,null,6,300,360]
["15.16","CURVA LONGA PVC 90º COLETORA ESGOTO OCRE PONTA BOLSA 150MM, COM ANÉIS, NORMAS: NBR 7362-1","Pç.",null,100,null,null,null,null,20,null,10,10,3,null,null,null,6,50,199]
["15.17","CURVA LONGA PVC 22º COLETORA ESGOTO OCRE PONTA BOLSA 200MM, COM ANÉIS, NORMAS: NBR 7362-1","Pç.",null,null,null,null,null,null,null,null,null,null,null,null,null,null,null,300,300]
["15.18","CURVA LONGA PVC 45º COLETORA ESGOTO OCRE PONTA BOLSA 200MM, COM ANÉIS, NORMAS: NBR 7362-1","Pç.",30,10,null,4,null,2,null,null,null,5,null,null,null,null,null,300,351]
["15.19","CURVA LONGA PVC 90º COLETORA ESGOTO OCRE PONTA BOLSA 200MM, COM ANÉIS, NORMAS: NBR 7362-1","Pç.",50,10,null,null,null,4,null,null,null,5,3,null,null,null,null,150,222]
["15.20","CURVA LONGA PVC 45º COLETORA ESGOTO OCRE PONTA BOLSA 250MM, COM ANÉIS NORMAS: NBR 7362-1","Pç.",20,null,null,4,null,null,null,null,null,null,null,null,null,null,null,150,174]
["15.21","CURVA LONGA PVC 90º COLETORA ESGOTO OCRE PONTA BOLSA 250MM, COM ANÉIS, NORMAS: NBR 7362-1","Pç.",20,null,null,null,null,null,null,null,null,null,null,null,null,null,null,70,90]
["15.22","CURVA LONGA PVC 45º COLETORA ESGOTO OCRE PONTA BOLSA 300MM, COM ANÉIS, NORMAS: NBR 7362-1","Pç.",null,null,null,null,null,null,null,null,null,null,null,null,null,null,null,70,70]
["15.23","CURVA LONGA PVC 90º COLETORA ESGOTO OCRE PONTA BOLSA 300MM, COM ANÉIS, NORMAS: NBR 7362-1","Pç.",null,null,null,null,null,null,null,null,null,null,null,null,null,null,null,300,300]
["15.24","JOELHO PVC ESGOTO OCRE JE 100MM X 45º C/ANEL, NORMAS: NBR 7362-1","PÇ",null,null,null,null,20,null,null,null,null,30,null,null,5,null,null,500,555]
["15.25","JOELHO PVC ESGOTO OCRE JE 100MM X 90º C/ANEL, NORMAS: NBR 7362-1","Pç",null,null,null,null,50,null,20,null,null,20,null,null,15,null,null,500,605]
["15.26","JOELHO PVC ESGOTO OCRE JE 150MM X 90º C/ANEL, NORMAS: NBR 7362-1","Pç",null,null,null,null,10,null,null,null,null,10,null,null,20,null,null,null,40]
["15.27","JUNÇÃO PVC 45º COLETORA ESGOTO BBB 150MM X 150MM, COM ANÉIS, NORMAS: NBR 7362-1","Pç.",null,null,null,null,null,null,null,null,null,5,null,null,null,null,null,null,5]
["15.28","JUNÇÃO PVC 45º REDUÇÃO COLETORA ESGOTO OCRE BBB 150MM X 100MM, COM ANÉIS, NORMAS: NBR 7362-1","Pç.",null,null,null,null,null,null,null,null,null,30,null,null,null,null,null,null,30]
["15.29","JUNÇÃO PVC 45º COLETORA ESGOTO BBB 300MM X 300MM, COM ANÉIS, NORMAS: NBR 7362-1","Pç.",null,null,null,null,null,null,null,null,null,null,null,null,null,null,null,350,350]
["15.30","LUVA PVC DE CORRER COLETORA ESGOTO OCRE 100MM, COM ANÉIS, NORMAS: NBR 7362-1","Pç.",30,50,null,null,null,null,null,null,null,null,null,null,null,null,null,350,430]
["15.31","LUVA PVC DE CORRER COLETORA ESGOTO OCRE 150MM, COM ANÉIS, NORMAS: NBR 7362-1","Pç.",100,300,10,null,null,null,20,null,50,null,null,null,10,50,50,null,590]
["15.32","LUVA PVC DUPLA DE CORRER COLETORA ESGOTO OCRE 150MM, COM ANÉIS, NORMAS: NBR 7362-1","Pç.",null,null,5,null,null,null,null,null,null,null,null,null,null,null,null,200,205]
["15.33","LUVA PVC DE CORRER COLETORA ESGOTO OCRE 200MM, COM ANÉIS, NORMAS: NBR 7362-1","Pç.",20,20,null,null,5,null,null,null,null,10,null,null,null,null,null,100,{"$f":"SUM(D493:S493)","v":155}]
["15.34","LUVA PVC DE CORRER COLETORA ESGOTO OCRE 250MM, COM ANÉIS, NORMAS: NBR 7362-1","Pç.",15,null,null,null,null,null,null,null,null,null,null,null,null,null,null,100,115]
["15.35","LUVA PVC DE CORRER COLETORA ESGOTO OCRE 300MM, COM ANÉIS, NORMAS: NBR 7362-1","Pç.",null,null,null,null,null,null,null,null,null,null,null,null,null,null,null,100,100]
["15.36","REDUÇÃO PVC EXCÊNTRICA COLETORA ESGOTO OCRE PONTA BOLSA 150MM X 100MM, COM ANÉIS, NORMAS: NBR 7362-1","Pç.",80,null,null,null,null,null,null,null,null,10,null,null,null,null,null,100,190]
["15.37","REDUÇÃO PVC EXCÊNTRICA COLETORA ESGOTO OCRE PONTA BOLSA 200MM X 150MM, COM ANÉIS, NORMAS: NBR 7362-1","Pç.",80,null,null,null,null,null,null,null,null,10,null,null,null,null,null,null,90]
["15.38","REDUÇÃO PVC EXCÊNTRICA COLETORA ESGOTO OCRE PONTA BOLSA 250MM X 200MM, COM ANÉIS, NORMAS: NBR 7362-1","Pç.",12,null,null,null,null,null,null,null,null,null,null,null,null,null,null,500,512]
["15.39","SELIM 90º ELÁSTICO COM TRAVAS COLETOR ESGOTO OCRE 150MM X 100MM, COM ANÉIS, NORMAS: NBR 7362-1","Pç.",250,600,20,null,null,100,null,null,200,null,20,null,100,100,null,null,1390]
["15.40","SELIM COMPACTO COLETOR ESGOTO OCRE JEI 150MM X 100MM, COM ANÉIS, NORMAS: NBR 7362-1","Pç.",null,null,null,null,null,null,null,null,null,null,null,null,null,null,10,500,510]
["15.41","SELIM 90º ELÁSTICO COM TRAVAS COLETOR ESGOTO OCRE 200MM X 100MM, COM ANÉIS, NORMAS: NBR 7362-1","Pç.",70,null,null,null,null,null,null,null,null,null,null,null,null,null,null,null,70]
["15.42","SELIM COMPACTO COLETOR ESGOTO OCRE JEI 200MM X 100MM, COM ANÉIS, NORMAS: NBR 7362-1","Pç.",50,null,null,null,null,null,null,null,null,null,null,null,null,null,null,null,50]
["15.43","SELIM COMPACTO COLETOR ESGOTO OCRE JEI 250MM X 100MM, COM ANÉIS, NORMAS: NBR 7362-1","Pç.",100,null,null,null,null,null,null,null,null,null,null,null,null,null,null,null,100]
["15.44","SELIM COMPACTO COLETOR ESGOTO OCRE JEI 300MM X 100MM, COM ANÉIS, NORMAS: NBR 7362-1","Pç.",null,null,null,null,null,null,null,null,null,null,null,null,null,null,null,250,250]
["15.45","TÊ PVC 90° COLETOR ESGOTO OCRE BBB 100MM X100MM, COM ANÉIS, NORMAS: NBR 7362-1","Pç.",15,null,null,null,null,null,null,null,null,20,null,null,30,null,null,250,315]
["15.46","TÊ PVC 90° COLETOR ESGOTO OCRE BBB 150MM X150MM, COM ANÉIS, NORMAS: NBR 7362-1","Pç.",null,null,null,null,null,null,null,null,null,10,null,null,10,null,null,250,270]
["15.47","TÊ PVC 90º REDUÇÃO COLETOR ESGOTO OCRE BBB 150MM X100MM, COM ANÉIS, NORMAS: NBR 7362-1","Pç.",null,10,null,null,null,null,null,null,null,10,null,null,5,null,null,250,275]
["15.48","TÊ PVC 90° COLETOR ESGOTO OCRE BBB 200MM X200MM, COM ANÉIS, NORMAS: NBR 7362-1","Pç.",40,null,null,null,null,null,null,null,null,5,null,null,null,null,null,250,295]
["15.49","TÊ PVC 90º REDUÇÃO COLETOR ESGOTO OCRE BBB 200MM X100MM, COM ANÉIS, NORMAS: NBR 7362-1","Pç.",null,null,null,null,null,null,null,null,null,5,null,null,null,null,null,250,255]
["15.50","TÊ PVC 90º REDUÇÃO COLETOR ESGOTO OCRE BBB 200MM X150MM, COM ANÉIS, NORMAS: NBR 7362-1","Pç.",null,5,null,null,null,null,null,null,null,5,null,null,null,null,null,50,60]
["15.51","TÊ PVC 90° COLETOR ESGOTO OCRE BBB 250MM X250MM, COM ANÉIS, NORMAS: NBR 7362-1","Pç.",20,null,null,null,null,null,null,null,null,null,null,null,null,null,null,50,70]
[]
[]
[null,"LOTE 16: CONEXÕES EM FERRO FUNDIDO"]
["16.1","COLAR DE TOMADA FERRO FUNDIDO P/TUBO PVC DN50mm – DE60mm X 1/2” C/ PARAFUSOS E PORCAS NORMAS: - NBR 6414.","Pç",null,null,null,null,null,null,null,null,20,null,null,null,null,null,null,100,{"$f":"SUM(D515:S515)","v":120}]
["16.2","COLAR DE TOMADA FERRO FUNDIDO P/TUBO PVC DN50mm – DE60mm X 3/4” C/PARAFUSOS E PORCAS NORMAS: - NBR 6414.","Pç.",null,null,null,null,null,null,null,null,null,null,null,null,null,null,null,100,100]
["16.3","COLAR DE TOMADA FERRO FUNDIDO P/TUBO PVC  DE 100mm X 3/4” C/PARAFUSOS E PORCAS NORMAS: - NBR 6414.","Pç",null,null,null,null,null,null,null,null,null,null,null,null,null,null,null,100,100]
["16.4","COLAR DE TOMADA FERRO FUNDIDO P/TUBO PVC  DE200mm X 3/4” C/PARAFUSOS E PORCAS NORMAS: - NBR 6414.","Pç",null,null,null,null,null,null,null,null,null,null,null,null,null,null,null,100,100]
["16.5","COLAR DE TOMADA FERRO FUNDIDO P/TUBO PVC  DE150mm X 3/4” C/PARAFUSOS E PORCAS NORMAS: - NBR 6414.","Pç",null,null,null,null,null,null,null,null,null,null,null,null,null,null,null,100,100]
["16.6","COLAR DE TOMADA FERRO FUNDIDO P/TUBO PVC  DE150mm X 1/2” C/PARAFUSOS E PORCAS NORMAS: - NBR 6414.","Pç",null,null,null,null,null,null,null,null,null,null,null,null,null,null,null,100,100]
["16.7","COLAR DE TOMADA FERRO FUNDIDO P/TUBO PVC  DE 100mm X 1/2” C/PARAFUSOS E PORCAS NORMAS: - NBR 6414.","Pç",null,null,null,null,null,null,null,null,null,null,null,null,null,null,null,100,100]
["16.8","COLAR DE TOMADA FERRO FUNDIDO P/TUBO PVC DE 75mm X 3/4” C/PARAFUSOS E PORCAS NORMAS: - NBR 6414.","Pç",null,null,null,null,null,null,null,null,null,null,null,null,null,null,null,100,100]
["16.9","COLAR DE TOMADA FERRO FUNDIDO PARA TUBO DE CIMENTO AMIANTO DN85mm X 3/4” COM PARAFUSOS E PORCAS. NORMAS: - NBR 6414 ","Pç.",null,null,null,null,null,null,null,null,null,null,null,null,null,null,5,null,5]
["16.10","COLAR DE TOMADA FERRO FUNDIDO P/TUBO DE CIMENTO AMIANTO DN100mm X 3/4” C/PARAFUSOS E PORCAS. P/REDE DE ÁGUA NORMAS: NBR 6414 ","Pç.",null,null,null,null,null,null,null,null,null,20,null,null,null,null,null,null,20]
["16.11","COLAR DE TOMADA FERRO FUNDIDO PARA TUBO DE CIMENTO AMIANTO DN100mmX 1/2”  NORMAS: - NBR 6414","Pç",null,null,null,null,null,null,null,null,50,15,null,null,null,null,null,null,65]
["16.12","COLAR DE TOMADA FERRO FUNDIDO PARA TUBO DE CIMENTO AMIANTO DN125mmX 3/4”   NORMAS: - NBR 6414.","Pç.",null,null,null,null,null,null,null,null,null,10,null,null,null,null,null,null,10]
["16.13","COLAR DE TOMADA FERRO FUNDIDO PARA TUBO DE CIMENTO AMIANTO DN150mmX 3/4”   NORMAS: - NBR 6414.","Pç.",10,null,null,null,null,null,null,null,50,10,null,null,null,null,null,null,70]
["16.14","CURVA EM FERRO FUNDIDO DN 150MM X 22º, COM BOLSAS E ANEÍS DE BORRACHA","Pç.",null,null,null,null,1,null,null,null,null,null,null,null,null,null,null,null,1]
["16.15","CURVA EM FERRO FUNDIDO DN 150MM X 90º, COM BOLSAS E ANEÍS DE BORRACHA","Pç.",null,null,null,null,null,null,null,null,10,null,null,null,2,null,null,null,12]
["16.16","CURVA EM FERRO FUNDIDO DN 150MM X 90º, COM FLANGES, ANEÍS DE BORRACHA","Pç",null,null,null,4,null,null,null,null,null,null,null,null,null,null,null,null,4]
["16.17","EXTREMIDADE EM FERRO FUNDIDO, C/FLANGE, DN 150 MM, C/BOLSA P/PVC.","Pç",15,null,null,null,null,null,null,null,null,null,null,null,2,null,null,null,17]
["16.18","EXTREMIDADE EM FERRO FUNDIDO, C/FLANGE, DN 150 MM, C/PONTA P/PVC.","Pç",15,null,null,4,null,null,null,null,null,null,null,null,null,null,null,null,19]
["16.19","JUNTA GIBAULT F.F. 100MM X 125MM P/TUBO PBA CL-15 C/ANEIS E PARAFUSOS.","Pç",null,null,null,null,null,null,null,null,null,10,null,null,null,null,null,null,10]
["16.20","JUNTA GIBAULT F.F. DN50mm P/F.FUNDIDO C/ANEIS E PARAFUSOS.","Un",null,null,null,null,null,null,null,null,null,null,null,null,null,null,null,150,150]
["16.21","JUNTA GIBAULT F.F. DN50mm CA Cl-30 X DE60mm PVC Cl-20 C/ANEIS E PARAFUSOS.","Pç.",null,null,5,null,null,null,null,null,null,null,null,null,null,null,null,null,5]
["16.22","JUNTA GIBAULT F.F. DN75mm CA Cl-30 X DE85mm PVC Cl-20 C/ANEIS E PARAFUSOS.","Pç",null,null,null,null,null,null,null,null,null,10,null,null,null,null,null,null,10]
["16.23","JUNTA GILBAULT DN 100mm P/Tubo CA CL-20 REVESTIDA ESMALTE BETUMINOSO C/ANEIS E PARAFUSOS.","Pç",10,null,null,null,null,null,null,null,null,10,null,null,null,null,null,null,20]
["16.24","JUNTA GILBAULT DN 100mm P/Tubo Fºfº  C/ANEIS E PARAFUSOS.","Pç",null,null,null,null,null,null,null,null,null,null,null,null,null,null,null,150,150]
["16.25","JUNTA GILBAULT EM FERRO FUNDIDO DN 100MM CL 15 PBA X DN 100MM CA CL 20, REVESTIDA COM ESMALTE BETUMINOSO, C/ANEIS E PARAFUSOS.","Pç",7,null,null,null,null,null,null,null,null,null,null,null,null,null,null,null,7]
["16.26","JUNTA GIBAULT F.F. 150MM X 125MM P/ TUBO PBA CL-15 C/ANEIS E PARAFUSOS.","Pç",null,null,null,null,null,null,null,null,null,5,null,null,null,null,null,null,5]
["16.27","JUNTA GILBAULT DN1 50mm p/ tubo CA Cl-15 X tubo PVC  160mm Cl-20 C/ANEIS E PARAFUSOS.","Pç",8,null,null,null,10,null,null,null,10,null,null,null,null,null,null,null,28]
["16.28","JUNTA GILBAULT DN 75MMMM P/ TUBO F.F. C/ PARAFUSOS E ANEIS.","Pç",10,null,null,null,null,null,null,null,null,null,null,null,null,null,null,20,30]
["16.29","JUNTA GILBAULT DN 150MM P/ TUBO F.F. C/ PARAFUSOS E ANEIS.","Pç",null,null,null,null,10,null,null,null,null,null,null,null,null,null,null,100,110]
["16.30","JUNTA GILBAULT DN 200MM P/ TUBO F.F. C/ PARAFUSOS E ANEIS.","Pç",8,null,null,null,null,null,null,null,null,null,null,null,null,null,null,100,108]
["16.31","Junção em ferro fundido BBB JE DN 50mm","Pç",null,null,null,null,null,null,null,null,null,null,null,null,null,null,null,10,10]
["16.32","REGISTRO GAVETA CHATO F.F. JEI  DN50mm X DE60mm C/cunha de borracha p/ tubo PVC PBA, NBR 12430","Pç",null,null,null,null,null,null,null,null,null,null,null,null,null,null,null,100,100]
["16.33","REGISTRO DE FERRO FUNDIDO, C/BOLSAS, 60MM C/HASTE E CABEÇOTE. CUNHA DE BORRACHA, com cunha revestida de borracha, Padrão construtivo conforme NBR 14968, composto de cunha maciça em ferro fundido dúctil, corpo e tampa confeccionados em ferro fundido dúctil, revestimento interno e externo em epóxi pó depositado eletrostaticamente com espessura mínima de 250 micra, passagem plena sem obstrução pela cunha, junta corpo chapéu confeccionada em EPDM, haste de manobra inteiriça confeccionada em aço inox ABNT 420, vedação da haste com anéis toroidais (o’rings) alojados na bucha de vedação, acionamento por cabeçote, extremidades com bolsas para tubos de PVC/PBA conforme norma NBR 12430.","Pç.",12,60,null,4,8,10,null,null,10,10,null,null,null,null,null,50,{"$f":"SUM(D547:S547)","v":164}]
["16.34","REGISTRO DE FERRO FUNDIDO DE GAVETA HASTE E CABEÇOTE 85 MM com cunha revestida de borracha, Padrão construtivo conforme NBR 14968, composto de cunha maciça em ferro fundido dúctil, corpo e tampa confeccionados em ferro fundido dúctil, revestimento interno e externo em epóxi pó depositado eletrostaticamente com espessura mínima de 250 micra, passagem plena sem obstrução pela cunha, junta corpo chapéu confeccionada em EPDM, haste de manobra inteiriça confeccionada em aço inox ABNT 420, vedação da haste com anéis toroidais (o’rings) alojados na bucha de vedação, acionamento por cabeçote, extremidades com bolsas para tubos de PVC/PBA conforme norma NBR 5647.",null,5,null,null,4,null,null,null,null,null,null,null,null,2,null,null,50,61]
["16.35","REGISTRO DE FERRO FUNDIDO, C/BOLSAS, 110MM C/HASTE E CABEÇOTE. CUNHA DE BORRACHA, com cunha revestida de borracha, Padrão construtivo conforme NBR 14968, composto de cunha maciça em ferro fundido dúctil, corpo e tampa confeccionados em ferro fundido dúctil, revestimento interno e externo em epóxi pó depositado eletrostaticamente com espessura mínima de 250 micra, passagem plena sem obstrução pela cunha, junta corpo chapéu confeccionada em EPDM, haste de manobra inteiriça confeccionada em aço inox ABNT 420, vedação da haste com anéis toroidais (o’rings) alojados na bucha de vedação, acionamento por cabeçote, extremidades com bolsas para tubos de PVC/PBA conforme norma NBR 12430.TRO DE F.F. P/TUBO DEFOFO DN-100mm cabeçote, c/aneis em ferro fundido dúcitil e c/cunha revestida  de elastômero EPDM , acionamento p/cabeçote.","Pç",8,null,null,6,"2 ",null,null,null,5,2,null,null,2,null,null,30,53]
["16.38","REGISTRO F. FUNDIDO, C/BOLSAS, 100MM C/HASTE E CABEÇOTE. CUNHA DE BORRACHA, P/REDE DE ÁGUA TUBO DEFOFO, JEI","Pç",null,null,null,null,null,null,null,null,5,2,null,null,null,null,null,60,67]
["16.39","REGISTRO Fº. Fº. GAVETA E VOLANTE C/BOLSAS, 100MM C/HASTE E CABEÇOTE. CUNHA DE BORRACHA, P/REDE DE ÁGUA TUBO DEFOFO, JEI","Pç",null,null,null,null,null,null,null,null,null,null,null,null,null,null,null,10,10]
["16.40","REGISTRO GAVETA CHATO Fº.Fº. JEI DN100mm X 110mm C/CUNHA BORRACHA P/TUBO PVC PBA NBR-12430.","Pç.",null,null,null,null,null,null,null,null,5,5,null,null,null,null,null,60,70]
["16.41","REGISTRO DE F.F.  JE P/ TUBO DEFOFO DN-150mm cabeçote, c/aneis de borracha e c/cunha revestida  de elastômero EPDM , acionamento com cabeçote.","Pç",4,null,null,null,null,null,null,null,5,null,2,null,null,null,null,50,61]
["16.42","REGISTRO DE F.F., C/BB 150mm, P/ PBA, cunha emborrachada, C/HASTE E CABEÇOTE e aneis  borrachas.","Pç.",null,null,null,6,null,null,null,null,5,null,null,null,2,null,null,30,43]
["16.43","REGISTRO DE Fº.Fº. C/GAVETA E VOLANTE JE P/TUBO DEFOFO DN-150mm cabeçote, c/aneis de borracha e c/cunha revestida  de elastômero EPDM , acionamento com cabeçote.","Pç",null,null,null,null,null,null,null,null,null,null,null,null,null,null,null,10,10]
["16.44","REGISTRO FºFº CUNHA DE BORRACHA FLANGE/FLANGE VOLANTE PN-16 P/TUBO FºFº  DN-150MM.","Pç.",null,null,null,null,null,null,null,8,null,null,null,null,5,null,null,10,23]
["16.45","REGISTRO DE Fº.Fº. C/ GAVETA E VOLANTE JE P/ TUBO DEFOFO DN-200mm cabeçote, c/aneis de borracha e c/cunha revestida  de elastômero EPDM , acionamento  com cabeçote.","pç",null,null,null,null,null,null,null,null,null,null,null,3,null,null,null,10,13]
["16.46","REGISTRO Fº.Fº., C/BOLSAS, 200MM C/HASTE E CABEÇOTE. CUNHA DE BORRACHA, P/REDE DE ÁGUA TUBO DEFOFO, JEI","Pç",5,null,null,2,null,2,null,null,null,null,2,null,1,null,null,20,32]
["16.47","REGISTRO Fº.Fº., FLANGES, CABEÇOTE, PN16 PARA TUBO FERRO FUNDIDO DN 150MM, COM ANÉIS","pç",null,null,null,null,null,null,null,null,null,null,1,null,null,null,null,null,1]
["16.48","REGISTRO Fº.Fº., FLANGES, CABEÇOTE, PN16 PARA TUBO FERRO FUNDIDO DN 200MM, COM ANÉIS","Pç",null,null,null,null,null,null,null,2,null,null,2,null,null,null,null,null,4]
["16.49","REGISTRO Fº.Fº., C/BOLSAS, 250MM C/HASTE E CABEÇOTE. CUNHA DE BORRACHA, P/REDE DE ÁGUA TUBO DEFOFO, JEI","Pç",null,null,null,2,null,null,null,null,null,null,null,null,null,null,null,null,2]
["16.50","REGISTRO Fº.Fº., C/BOLSAS, 300MM C/HASTE E CABEÇOTE. CUNHA DE BORRACHA, P/REDE DE ÁGUA TUBO DEFOFO, JEI","Pç",null,null,null,1,null,null,null,null,null,null,null,null,null,null,null,null,1]
["16.51","TÊ EM Fº.Fº. BBB JEI DN 50mm  p/ tubo PBA, c/ anéis de borracha","Pç",null,null,null,null,null,null,null,null,null,null,null,null,null,null,null,20,20]
["16.52","TÊ EM Fº.Fº. BBB JEI, Redução  DN-150mm X 100mm p/ tubo DEFOFO NBR-7665/07,c/ anéis de borracha","Pç",null,null,null,null,null,null,null,null,null,null,null,null,null,null,null,10,10]
["16.53","TÊ EM Fº.Fº. BBB JE DN-150mm X 150mm p/ tubo DEFOFO NBR-7665/07, c/ anéis de borracha","Pç.",null,null,null,null,null,null,null,null,null,null,null,null,3,null,null,10,13]
["16.54","TÊ EM Fº.Fº. BBB JE DN-150mm X 150mm p/ tubo PVC PBA NBR-7665/07, c/ anéis de borracha","Pç.",null,null,null,4,null,null,null,null,null,null,null,null,null,null,null,10,14]
["16.55","TÊ EM F.FUNDIDO BBB JE DN-150mm X 60mm p/tubo DEFOFO NBR-7665/07, c/ anéis de borracha","Pç.",null,null,null,null,null,null,null,null,null,null,null,null,null,null,null,10,10]
["16.56","TÊ EM F.FUNDIDO BBB JE DN-140 DE160mm p/tubo PBA NBR-5647, c/ anéis de borracha","Pç.",null,null,null,null,null,null,null,null,null,null,null,null,2,null,null,10,12]
["16.57","TÊ EM F.FUNDIDO BBB JE DN-50mm DE60mm p/ tubo PBA NBR-7665/07, c/ anéis de borracha","Pç",null,null,null,null,null,null,null,null,null,null,null,null,10,null,null,null,10]
["16.58","TÊ EM F.FUNDIDO BBB JE 150MM X 100MM p/ tubo PBA NBR-7665/07, c/ anéis de borracha","Pç",null,null,null,4,null,1,null,null,null,null,null,null,10,null,null,null,15]
["16.59","TÊ EM F.FUNDIDO BBB JE DN-150mm p/tubo DEFOFO NBR-7665/07 c/ anéis de borracha","Pç",null,null,null,4,null,null,null,null,null,null,null,null,null,null,null,null,4]
["16.60","TÊ EM F.FUNDIDO BBB JE DN-300mm p/tubo DEFOFO NBR-7665/07 c/ anéis de borracha","Pç",null,null,null,1,null,null,null,null,null,null,null,null,null,null,null,null,1]
["16.61","TÊ EM F.FUNDIDO COM FLANGE DN-150mm X 85mm com ponta p/ tubo PVC PBA,  JE, NBR-7665/07, c/ anéis de borracha","Pç",null,null,null,2,null,null,null,null,null,null,null,null,null,null,null,null,2]
["16.62","Redução em ferro fundido com flange150mm x 85mm, com ponta para PVC PBA 85mm","Pç",null,null,null,2,null,null,null,null,null,null,null,null,null,null,null,null,2]
["16.63","Redução em ferro fundido PB JEI 100mm x 60mm para PBA","Pç",null,null,null,null,null,null,null,null,null,null,null,null,null,null,null,10,10]
["16.63","Redução em ferro fundido PB JEI 150mm x 100mm para DEFOFO","Pç",null,null,null,null,null,null,null,null,null,null,null,null,null,null,null,10,10]
["16.64","Redução em ferro fundido PB 200mm x 150mm para DEFOFO","Pç",8,null,null,null,null,null,null,null,null,null,null,null,null,null,null,null,8]
["16.65","VALVULA DE RETENÇÃO EM FERRO FUNDIDO COM FLANGE E BAY PASS, TIPO PORTINHOLA C/ CUNHA DE BORRAHA, DN 100MM","Pç",6,null,null,null,null,null,null,null,null,null,null,null,null,null,null,10,16]
["16.66","VALVULA DE RETENÇÃO EM FERRO FUNDIDO COM FLANGE E BAY PASS, TIPO PORTINHOLA C/ CUNHA DE BORRAHA, DN 150MM","Pç",6,null,null,null,null,null,null,null,null,null,null,null,null,null,null,10,{"$f":"SUM(D579:S579)","v":16}]
["16.67","VALVULA DE RETENÇÃO EM FERRO FUNDIDO COM FLANGE E BAY PASS, TIPO PORTINHOLA C/ CUNHA DE BORRAHA, DN 200MM","Pç",null,null,null,null,null,null,null,null,null,null,null,null,null,null,null,10,10]
["16.68","VALVULA DE PÉ E CRIVO EM FERRO FUNDIDO COM FLANGE , DN 100MM","Pç",5,null,null,null,null,null,null,null,null,null,null,null,null,null,null,10,15]
["16.69","VALVULA DE PÉ E CRIVO EM FERRO FUNDIDO COM FLANGE , DN 150MM","Pç",5,null,null,null,null,null,null,null,null,null,null,null,null,null,null,10,15]
["16.70","VALVULA DE PÉ E CRIVO EM FERRO FUNDIDO COM FLANGE , DN 200MM","Pç",null,null,null,null,null,null,null,null,null,null,null,null,null,null,null,10,10]
["16.71","HIDRANTE DE COLUNA COMPLETO NORMA ABNT NBR 5667, Corpo e tampas em ferro fundido dúctil NBR 6916 classe 42012, Bujões em latão fundido de acordo com NBR 6314, Vedações das tampas e bujões em borracha natural SBR, Medida entrada/saída 100mm(4”), sáida com 50mm, altura 99 CM, largura 22CM, comprimento 22CM., ","Pç",null,null,null,null,null,null,null,null,null,null,null,null,null,null,null,5,5]
["16.72","PLACA DE REDUÇÃO EM FERRO FUNDIDO 150MM X 100MM, COM FLANGES","Pç",null,null,null,2,null,null,null,null,null,null,null,null,null,null,null,null,2]
["16.73","PLACA DE REDUÇÃO EM FERRO FUNDIDO 150MM X 85MM, COM FLANGES","Pç",null,null,null,2,null,null,null,null,null,null,null,null,null,null,null,null,2]
["16.74","PLACA DE REDUÇÃO EM FERRO FUNDIDO 150MM X 60MM, COM FLANGES","Pç",null,null,null,2,null,null,null,null,null,null,null,null,null,null,null,null,2]
[]
[]
[null,"LOTE 17: CONEXÕES DE METAL PARA HIDRÔMETROS"]
["17.1","CONJUNTO PORCA/TUBETE EM METAL E GUARNIÇÃO EM  BORRACHA P/ HIDRÔMETRO DE ½”, ","Pç",null,4000,null,3000,null,null,800,null,2000,null,null,1200,null,200,null,20000,{"$f":"SUM(D591:S591)","v":31200}]
["17.2","CONJUNTO PORCA/TUBETE EM METAL E GUARNIÇÃO EM  BORRACHA P/HIDRÔMETRO DE ¾”, ","Pç",null,400,null,null,null,null,null,null,null,null,null,null,null,null,null,500,{"$f":"SUM(D592:S592)","v":900}]
["17.3","CONJUNTO PORCA/TUBETE EM METAL E GUARNIÇÃO EM  BORRACHA P/ HIDRÔMETRO DE  1” , ","Pç",null,null,null,null,null,null,null,null,null,null,null,null,null,null,null,600,{"$f":"SUM(D593:S593)","v":600}]
[]
[]
[null,"LOTE 18: CONEXÕES DE PVC PARA HIDRÔMETROS"]
["18.1","CONJUNTO PORCA COM ISERTO METÁLICO /TUBETE/GUARNIÇÃO DE PVC P/ HIDRÔMETRO DE ½”, ","Pç",null,null,null,null,null,null,null,null,2000,null,null,null,500,null,null,null,{"$f":"SUM(D597:S597)","v":2500}]
["18.2","GUARNIÇÃO DE BORRACHA P/ EXTREMIDADE DE HIDRÔMETROS DE ½”, ","Pç",5000,5000,null,null,null,null,null,null,null,null,null,500,1000,500,null,20000,32000]
["18.3","GUARNIÇÃO DE BORRACHA P/EXTREMIDADE DE HIDRÔMETROS DE ¾”.","Pç",null,2000,null,null,null,null,null,null,null,null,null,null,null,null,null,500,2500]
["18.4","LACRE  PARA SUPRESSÃO DE ÁGUA ½” – LACRE ANTIFRAUDE EM POLIPROPILENO PARA HIDRÔMETRO COM TRAVAS LATERAIS, FECHAMENTO MANUAL SEM UTILIZAÇÃO DE FERRAMENTAS.","Pç",2000,null,null,null,null,null,null,null,600,null,null,500,null,null,null,null,3100]
["18.5","HÓSTIA EM PVC/POLIPROPILENO (DISPOSITIVO PARA CORTE DE ÁGUA ½”.","Pç",2000,null,null,null,null,null,2000,null,null,null,null,null,300,null,null,null,4300]
["18.6","Selo de segurança na cor azul, para hidrometro, tipo âncora sem fio, com logomarca, SANEAR ou SAAE","Pç",null,null,null,null,null,null,null,null,null,null,null,null,null,null,null,10000,10000]
["18.7","Selo de segurança na cor vermelho, para hidrometro, tipo âncora sem fio, com logomarca, SANEAR ou SAAE","Pç",null,null,null,null,null,null,null,null,null,null,null,null,null,null,null,10000,10000]
[]
[]
[null,"LOTE 19: CONEXÕES DE METAL E SERRINHA"]
["19.1","REGISTRO DE METAL COM PRESSÃO DE ½”.","Pç",null,null,20,null,null,null,null,null,null,null,null,null,null,null,null,1000,{"$f":"SUM(D607:S607)","v":1020}]
["19.2","REGISTRO DE METAL DE GAVETA E VOLANTE ½”.","Pç",null,null,null,null,null,null,null,null,null,null,null,null,null,null,null,1000,1000]
["19.3","TORNEIRA DE METAL E PRESSÃO DE ½”.","Pç",null,null,null,null,null,null,null,null,null,null,null,null,null,null,null,200,200]
["19.4","REGISTRO DE METAL COM PRESSÃO DE ¾.","Pç.",null,null,null,null,null,null,null,null,null,null,null,null,null,null,null,700,700]
["19.5","REGISTRO DE METAL DE GAVETA E VOLANTE  ¾”.","Pç.",null,null,null,null,null,null,null,null,null,null,null,null,null,null,null,700,700]
["20.6","REGISTRO DE METAL DE GAVETA E VOLANTE 1”.","Pç.",null,null,null,null,null,null,null,null,null,null,null,null,null,null,null,200,200]
["19.7","REGISTRO DE METAL DE GAVETA E VOLANTE 1, ½”.","Pç.",null,null,null,null,null,null,10,null,null,null,null,null,null,null,null,100,110]
["19.8","REGISTRO DE METAL DE GAVETA E VOLANTE 1,1/4”.","Pç.",null,null,null,null,null,null,null,null,null,null,null,null,null,null,null,100,100]
["19.9","REGISTRO DE METAL DE GAVETA E VOLANTE 2”.","Pç",12,null,null,null,null,null,10,null,null,null,null,null,null,null,null,200,222]
["19.10","REGISTRO DE METAL DE GAVETA E VOLANTE 3”.","Pç",5,null,null,null,null,null,null,null,null,null,null,null,null,null,null,200,205]
["19.11","REGISTRO BOIA DE METAL 2”.","Pç",null,null,2,10,null,null,null,null,null,null,null,null,null,null,null,null,12]
["19.12","LÂMINA DE SERRA MANUAL BIMETAL FLEXÍVEL DE 12”, MEDINDO 300 X 13 X 0,6MM, STARRET OU SIMILAR","Pç",500,1000,20,100,100,null,null,200,500,null,80,500,300,null,100,1000,4400]
["19.13","Registro de esfera p/ instalações prediais de água Dn 1/2 cl.pressão mínima PN10, corpo emlatãoncombanho de cromo,esfera em latão com banho de cromo ou aço inox, extremidades c/ rosca BSP(de um lado macho cônica e do outro fêmea paralela), comprimento 63,0 a 67,0 mm de altura(incluindo borboleta), 48,0 a 54,0 mm diâmetro externo do corpo 26,0 a 32,0mm com borboletametálica conf. NBR 6834 , comprim.maior 49,0 a 52,0 mm,alt. 15,0 a 18,0 mm, espessura 3,5 a 4,5 mm protegida contra corrosão.","Pç",800,null,null,null,null,null,null,null,null,null,null,null,null,null,null,null,800]
["19.14","Registro de gaveta 2\", com corpo, cunha e castelo em liga de bronze com baixo teor de zinco, resistente a corrosão, haste reforçada em latão e volante em zamac pintado, classe pressão até 200 psi, norma NBR 15705","Pç",null,null,null,20,null,10,null,null,null,null,null,null,null,null,null,null,{"$f":"SUM(D620:S620)","v":30}]
["19.15","Carrapeta em silicone para torneira e registro 1/2","Pç",null,null,null,null,null,null,null,null,null,null,null,null,null,null,null,1000,{"$f":"SUM(D621:S621)","v":1000}]
["19.16","Carrapeta em silicone para torneira e registro 3/4","Pç",null,null,null,null,null,null,null,null,null,null,null,null,null,null,null,500,{"$f":"SUM(D622:S622)","v":500}]
[]
[]
[null,"LOTE 20 – HIDROMETROS ATÉ 3M3/H"]
["20.1","HIDRÔMETRO UNIJATO TRANSMISSÃO MAGNÉTICA CL-B VAZÃO DE 1,5M3/H X ½” SEM CONEXÕES, RELOJOARIA INCLINADA 45º ","Pç",null,null,null,null,null,null,null,350,null,100,null,600,null,null,null,null,{"$f":"SUM(D626:S626)","v":1050}]
["20.2","HIDRÔMETRO MULTIJATO TRANSMISSÃO MAGNÉTICA CL-B VAZÃO DE 3M3/H X ½” SEM CONEXÕES, RELOJOARIA INCLINADA 45º","Pç",650,null,null,null,null,null,null,null,null,300,null,null,null,null,null,25,{"$f":"SUM(D627:S627)","v":975}]
["20.3","HIDRÔMETRO UNIJATO TRANSMISSÃO MAGNÉTICA CL-B VAZÃO DE 3M3/H X ½” SEM CONEXÕES, RELOJOARIA INCLINADA 45º","Pç",null,2000,null,1500,null,200,400,null,1000,null,null,null,400,300,null,10000,{"$f":"SUM(D628:S628)","v":15800}]
["20.4","HIDRÔMETRO MULTIJATO TRANSMISSÃO MAGNÉTICA CL-B VAZÃO DE 5M3/H X ¾” SEM CONEXÕES, RELOJOARIA INCLINADA 45º.","Pç",20," 200",null,null,null,null,null,null,null,null,null,null,null,null,null,500,{"$f":"SUM(D629:S629)","v":520}]
[]
[]
[null,"LOTE 21 – HIDROMETROS ATÉ 30M3/H"]
["21.1","HIDRÔMETRO MULTIJATO MECNICO CL-B VAZÃO DE 10M3/H X 1” SEM CONEXÕES, RELOJOARIA INCLINADA 45º.","Pç",null,null,null,null,null,null,null,null,null,null,null,null,null,null,null,50,{"$f":"SUM(D633:S633)","v":50}]
["21.2","HIDRÔMETRO MULTIJATO VAZÃO DE 20M3/H x 1 1/2, LEITURA DIRETA, SEM CONEXÕES, RELOJOARIA INCLINADA 45º., COM CONEXÕES","Pç",null,null,null,null,null,null,null,null,null,null,null,null,null,null,null,50,{"$f":"SUM(D634:S634)","v":50}]
["21.3","HIDRÔMETRO MULTIJATO 2, \"LEITURA DIRETA 30M3/H,   FLANGEADO, com conexão (JOGO DE CONTRA-FLANGES)","Pç",null,null,null,null,null,null,null,null,null,null,null,null,null,null,null,10,{"$f":"SUM(D635:S635)","v":10}]
[]
[]
[null,"LOTE 22: TAMPÃO F.F. PARA PV"]
["22.1","TAMPÃO DE FERRO FUNDIDO, ARTICULADO 600MM P/ SUPORTAR 40TN, PARA [PV] COM A INSCRIÇÃO {SAAE OU SANEAR/ÁGUA}  NBR-160","Pç",null,150,null,null,null,null,null,null,null,null,null,null,null,null,null,50,{"$f":"SUM(D639:S639)","v":200}]
["22.2","TAMPÃO DE FERRO FUNDIDO, ARTICULADO 600MM P/SUPORTAR 40TN, PARA [PV] COM A INSCRIÇÃO {SAAE OU SANEAR/ESGOTO}  NBR-160","Pç",null,150,null,null,null,null,null,null,null,20,null,10,10,null,null,400,{"$f":"SUM(D640:S640)","v":590}]
["22.3","TAMPÃO DE FERRO FUNDIDO, ARTICULADO, DIÂMETRO DA BASE 700MM,  DA TAMPA 595MM, PASSAGEM LIVRE 570MM, ALTURA DO CONJUNTO 65MM, P/ SUPORTAR 13TN, COM A INSCRIÇÃO {SAAE / ÁGUA}  NBR-160","Pç",null,null,null,10,null,null,null,null,null,null,6,null,null,null,null,null,{"$f":"SUM(D641:S641)","v":16}]
["22.4","TAMPÃO DE FERRO FUNDIDO, ARTICULADO, DIÂMETRO DA BASE 700MM,  DA TAMPA 595MM, PASSAGEM LIVRE 570MM, ALTURA DO CONJUNTO 65MM, P/ SUPORTAR 13TN, COM A INSCRIÇÃO {SAAE / ESGOTO}  NBR-160","Pç",null,null,null,10,null,null,null,null,null,null,8,null,null,null,null,null,{"$f":"SUM(D642:S642)","v":18}]
[]
[]
[null,"   LOTE 23: CONEXÕES  GALVANIZADAS"]
["23.1","Tê em ferro galvanizado 1/2","Pç",null,null,null,null,null,null,null,null,null,null,null,null,null,null,null,100,{"$f":"SUM(D646:S646)","v":100}]
["23.2","Tê em ferro galvanizado 3/4","Pç.",null,null,null,null,null,null,null,null,null,null,null,null,null,null,null,100,100]
["23.3","Tê em ferro galvanizado 2\"","Pç",null,null,null,null,null,null,null,null,null,null,null,null,null,null,null,100,100]
["23.4","Luva simples em ferro galvanizado 1/2","Pç.",null,null,null,null,null,null,null,null,null,null,null,null,null,null,null,100,100]
["23.5","Luva simples em ferro galvanizado 3/4","pç",null,null,null,null,null,null,null,null,null,null,null,null,null,null,null,100,100]
["23.6","Luva união em ferro galvanizado 1/2","Pç",null,null,null,null,null,null,null,null,null,null,null,null,null,null,null,100,100]
["23.7","Luva união em ferro galvanizado 2\"","Pç",null,null,null,null,null,6,null,null,null,null,null,null,null,null,null,null,6]
["23.8","Nipel em ferro galvanizado 1/2","Pç",null,null,null,null,null,null,null,null,null,null,null,null,null,null,null,100,100]
["23.9","Nipel em ferro galvanizado 3/4","Pç",null,null,null,null,null,null,null,null,null,null,null,null,null,null,null,100,100]
["23.10","Nipel em ferro galvanizado 3/8","Pç.",null,null,null,null,null,null,null,null,null,null,null,null,null,null,null,100,100]
["23.11","Nipel em ferro galvanizado 1\"","Pç.",null,null,null,null,null,null,null,null,null,null,null,null,null,null,null,100,100]
["23.12","Bucha de redução em ferro galvanizado 3/4 x 1/2","Pç",null,null,null,null,null,null,null,null,null,null,null,null,null,null,null,100,100]
["23.13","Joelho em ferro galvanizado 1/2","Pç",null,null,null,null,null,null,null,null,null,null,null,null,null,null,null,100,100]
["23.14","Joelho em ferro galvanizado 3/4","Pç",null,null,null,null,null,null,null,null,null,null,null,null,null,null,null,100,100]
["23.15","Joelho em ferro galvanizado 2\"","Pç",null,null,null,null,null,null,null,null,null,null,null,null,null,null,null,100,100]
[]
[]
[null,"LOTE 24:  PVC DIVERSOS"]
["24.1","TUBO PVC PONTA/BOLSA JEI/JERI CLASSE 15 DE125MM X 6 METROS, C/ ANEL DE BORRACHA NORMAS: NBR 5647/1","Pç.",null,null,null,null,null,null,null,null,null,null,null,null,null,null,null,30,{"$f":"SUM(D664:S664)","v":30}]
["24.2","TUBO PVC/PBA JEI/JERI CLASSE 15, DN60MM DE75MM X 6 METROS, C/ ANEL DE BORRACHA NORMAS:  NBR 5647-1","Pç.",null,null,null,null,null,null,null,null,null,null,null,null,null,null,null,100,{"$f":"SUM(D665:S665)","v":100}]
["24.3","TUBO PVC PBA PONTA BOLSA JEI, 6,3 PN 0,75, CL 15, DN 140MM DE160MM, COM ANÉIS, COMPRIM 06MTS.","Pç.",null,null,null,null,null,null,null,null,null,null,null,null,null,null,null,50,{"$f":"SUM(D666:S666)","v":50}]
["24.4","TUBO PVC PBA PONTA BOLSA JEI, 6,3 PN 1,0 CL20, DN 140MM DE160MM, COM ANÉIS, COMPRIM 06MTS.","Pç.",null,null,null,null,null,null,null,null,null,null,null,null,null,null,null,50,{"$f":"SUM(D667:S667)","v":50}]
[]
[]
[null,"LOTE 25:  DIVERSOS"]
["25.1","BOIA ALTA PRESSÃO 2\"","Pç",null,null,null,10,null,10,null,null,null,null,null,null,null,null,null,null,{"$f":"SUM(D671:S671)","v":20}]
["25.2","CHAVE BOIA AUTOMATICA 15 AMPERES","Pç",null,null,null,null,null,15,null,null,null,null,null,null,null,null,null,null,{"$f":"SUM(D672:S672)","v":15}]
["25.13","ADESIVO VEDA JUNTA PARA JUNTA DE MOTOR RESISTENTE A ALTAS TEMPERATURAS , CAPACIDADE 75 GRS.","Pç",null,null,null,null,null,null,null,null,null,null,null,null,null,100,null,800,{"$f":"SUM(D673:S673)","v":900}]
[]
[null,"OBS.: Os HIDRÔMETROS(Lotes 20 e 21) deverão ter a garantia mínima de 2 (dois) anos a partir da data de operação, e no ato da entrega dos mesmos deverá ser apresentado resultado dos testes em laboratório credenciado pelo INMETRO, utilizando a NBR 15538:2001."]

{"sheet":"Plan2","index":1,"n_rows":0,"n_cols":0,"rows_kept":0,"cut":false,"hidden":false,"merged":[]}

{"sheet":"Plan3","index":2,"n_rows":0,"n_cols":0,"rows_kept":0,"cut":false,"hidden":false,"merged":[]}